Workbook

Sheet Sheet2 (hidden)
A1: ООО Белпромсистем
A3: Карточка №
A4: учета расхода ДТ автомобилем
A5: Марка автомобиля МЕРСЕДЕС БЕНЦ 208 D | G5: государственный номерной знак 8060 АМ-7
A6: за январь 2006 года
A8: Материально ответственное лицо
A9: Звездов О В
B10: ДТ
A11: Число месяца | B11: Номер путевого листа | C11: Ф.И.О. водителя | D11: Показание спидометра перед поездкой | E11: Пробег , км | F11: Показание спидометра после поездки | H11: Остаток топлива при выезде, л. | I11: Приобретено топлива на АЗС, л. | J11: Остаток топлива при возврате, л | K11: Расход топлива по норме, л. | L11: Расход топлива фактически, л.
A12: 2000-11-28 | B12: 401421 | C12: Свентицкий А.М. | D12: 478048 | E12: 200 | F12: =D12+E12 -> 478248 | H12: 497.89 | J12: =H12+#REF!-K12+I12 ->  | K12: =#REF!+#REF! -> 
A13: 2000-12-04 | C13: Свентицкий А.М. | H13: 440.54 | J13: =H13+#REF!-K13+I13 -> 
A14: 2000-12-07 | B14: 401422 | C14: Свентицкий А.М. | D14: =F12 -> 478248 | E14: 410 | F14: =D14+E14 -> 478658 | H14: 240.54 | I14: 250.02 | J14: =H14+#REF!-K14+I14 ->  | K14: =#REF!+#REF! -> 
A15: 2000-12-13 | B15: 401423 | C15: Свентицкий А.М. | D15: =F14 -> 478658 | E15: 263 | F15: =D15+E15 -> 478921 | H15: =J14 ->  | J15: =H15+#REF!-K15+I15 ->  | K15: =#REF!+#REF! -> 
A16: 2000-12-13 | B16: 401424 | C16: Свентицкий А.М. | D16: =F15 -> 478921 | E16: 826 | F16: =D16+E16 -> 479747 | H16: =J15 ->  | I16: 185.05 | J16: =H16+#REF!-K16+I16 ->  | K16: =#REF!+#REF! -> 
A17: 2000-12-15 | B17: 186080 | C17: Свентицкий А.М. | D17: =F16 -> 479747 | E17: 1400 | F17: =D17+E17 -> 481147 | H17: =J16 ->  | I17: 334 | J17: =H17+#REF!-K17+I17 ->  | K17: =#REF!+#REF! -> 
A18: 2000-12-19 | B18: 186078 | C18: Свентицкий А.М. | D18: =F17 -> 481147 | E18: 1400 | F18: =D18+E18 -> 482547 | H18: =J17 ->  | I18: 197 | J18: =H18+#REF!-K18+I18 ->  | K18: =#REF!+#REF! -> 
H19: =J18 ->  | I19: 230 | J19: =H19+#REF!-K19+I19 ->  | K19: =#REF!+#REF! -> 
A20: ДЕКАБРЬ | C20: ИТОГО | E20: =SUM(E14:E18) -> 4299 | I20: =SUM(I14:I19) -> 1196.07 | K20: =SUM(K14:K19) -> 
A21: 1 | B21: 2 | C21: 3 | D21: 4 | E21: 5 | F21: 6 | G21: 7 | H21: 8 | I21: 9 | J21: 10 | K21: 11 | L21: 12
A22: 2006-01-02 | B22: 1549064 | C22: Звездов О В | D22: 360481 | E22: =489-6*2 -> 477 | F22: =D22+E22 -> 360958 | G22: город, за городом | H22: 45.45 | J22: =ROUND(H22+I22-K22,2) -> 2.42 | K22: 43.03 | L22: =K22 -> 43.03 | N22: Минск ул. Железнод 27-п. Городея ООО ПМК-217 г мИнск ул Железнод 27-г. слоним и обратно г Минск пр-д Чижевских -г минск ул.Железнод 27 | T22: и обратно | V22: 80-80 155-155 7- | X22: по год 67*9,4/100=6,29 за городом 410*8,96/100=36,74
A23: 2006-01-03 | C23: Звездов О В | D23: =F22 -> 360958 | F23: =D23+E23 -> 360958 | G23: город | H23: =J22 -> 2.42 | J23: 2.42 | K23: =ROUND(9.4/100*E23,2) -> 0 | L23: =K23 -> 0
A24: 2006-01-04 | C24: Звездов О В | D24: 360958 | F24: 360958 | G24: город | H24: 2.42 | J24: 2.42 | K24: =ROUND(9.4/100*E24,2) -> 0 | L24: 0
A25: 2006-01-05 | C25: Звездов О В | D25: 360958 | F25: 360958 | G25: город | H25: 2.42 | J25: 2.42 | K25: 0 | L25: 0
A26: 2006-01-06 | C26: Звездов О В | D26: 360958 | F26: 360958 | G26: город | H26: 2.42 | J26: 2.42 | K26: 0 | L26: 0
A27: 2006-01-09 | C27: Звездов О В | D27: 360958 | F27: 360958 | G27: город | H27: 2.42 | J27: 2.42 | K27: 0 | L27: 0
A28: 2006-01-10 | B28: 1549870 | C28: Звездов О В | D28: 360958 | E28: 22 | F28: 360980 | G28: город | H28: 2.42 | J28: 0.35 | K28: 2.07 | L28: 2.07
A29: 2006-01-11 | B29: 1549065 | C29: Звездов О В | D29: 360980 | E29: 12 | F29: 360992 | G29: город | H29: 0.35 | I29: 20.8 | J29: 20.02 | K29: 1.13 | L29: 1.13 | M29: 39281 | N29: 325 | O29: 10+10,8
A30: 2006-01-12 | C30: Звездов О В | D30: 360992 | F30: 360992 | G30: город | H30: 20.02 | J30: 20.02 | K30: 0 | L30: 0
A31: 2006-01-13 | B31: 1549871 | C31: Звездов О В | D31: 360992 | E31: 20 | F31: 361012 | G31: город | H31: 20.02 | I31: 17 | J31: 35.14 | K31: 1.88 | L31: 1.88 | M31: 112024
A32: 2006-01-16 | B32: 1549066 | C32: Звездов О В | D32: 361012 | E32: =14*2+11*2+8*2 -> 66 | F32: 361078 | G32: город | H32: 35.14 | J32: 28.94 | K32: 6.2 | L32: 6.2
A33: 2006-01-17 | C33: Звездов О В | D33: 361078 | F33: 361078 | G33: город | H33: 28.94 | J33: 28.94 | K33: 0 | L33: 0
A34: 2006-01-18 | C34: Звездов О В | D34: 361078 | F34: 361078 | G34: город | H34: 28.94 | J34: 28.94 | K34: 0 | L34: 0
A35: 2006-01-19 | C35: Звездов О В | D35: 361078 | F35: 361078 | G35: город | H35: 28.94 | J35: 28.94 | K35: 0 | L35: 0
A36: 2006-01-20 | C36: Звездов О В | D36: 361078 | F36: 361078 | G36: город | H36: 28.94 | J36: 28.94 | K36: 0 | L36: 0 | N36: минск ул. Железнод 27 -г. Пружаны и обратно | T36: не хват топлива | V36: надо 52,8
A37: 2006-01-23 | C37: Звездов О В | D37: 361078 | F37: 361078 | G37: город | H37: 28.94 | J37: 28.94 | K37: 0 | L37: 0
A38: 2006-01-24 | C38: Звездов О В | D38: 361078 | F38: 361078 | G38: город | H38: 28.94 | J38: 28.94 | K38: 0 | L38: 0 | N38: минск ул. Железнод 27 -г.Микашевичи и обратно | S38: не хват топлива | U38: 255
A39: 2006-01-25 | B39: 1549872 | C39: Звездов О В | D39: 361078 | E39: =194*2 -> 388 | F39: 361466 | G39: город, за городом | H39: 28.94 | I39: 20 | J39: 14 | K39: 34.94 | L39: 34.94 | N39: мИнск ул Железнод 27-г. слоним и обратно | U39: =20*2*9.4/100 -> 3.76 | V39: =348*8.96/100 -> 31.1808
A40: 2006-01-26 | C40: Звездов О В | D40: 361466 | F40: 361466 | G40: город | H40: 14 | J40: 14 | K40: 0 | L40: 0 | V40: =U39+V39 -> 34.9408
A41: 2006-01-27 | C41: Звездов О В | D41: 361466 | F41: 361466 | G41: город | H41: 14 | J41: 14 | K41: 0 | L41: 0 | M41: 61731 | O41: 10.2
A42: 2006-01-28 | C42: Звездов О В | D42: 361466 | F42: 361466 | G42: город | H42: 14 | I42: 10.2 | J42: 24.2 | K42: 0 | L42: 0
A43: 2006-01-30 | C43: Звездов О В | D43: =F41 -> 361466 | F43: 361466 | G43: город | H43: 24.2 | J43: 24.2 | K43: 0 | L43: 0
A44: 2006-01-31 | B44: 1549873 | C44: Звездов О В | D44: =F41 -> 361466 | E44: 47 | F44: 361513 | G44: город | H44: 24.2 | I44: 13 | J44: 32.78 | K44: 4.42 | L44: 4.42 | M44: 0428
C45: Звездов О В | D45: =#REF! ->  | H45: =#REF! ->  | K45: =ROUND(7.2/100*E45,2) -> 0
C46: Звездов О В | D46: =F45 ->  | H46: =J45 ->  | K46: 0
C47: Звездов О В | K47: 0
C48: Звездов О В | K48: 0
C49: Звездов О В | K49: 0
C50: Звездов О В | K50: 0
C51: Звездов О В | K51: 0
C52: Звездов О В | D52: =#REF! ->  | H52: =#REF! ->  | K52: 0
C53: Звездов О В | D53: =F52 ->  | H53: =J52 ->  | K53: 0
C54: Звездов О В | D54: =F53 ->  | H54: =J53+16 ->  | K54: 0
A55: ИТОГО за месяц | E55: =SUM(E22:E44) -> 1032 | I55: =SUM(I23:I44) -> 81 | K55: =SUM(K22:K44) -> 93.67 | L55: =K55 -> 93.67
A57: Составил ФИО _________________ | P57: 80.957
E58: (подпись)
A59: Проверил _____________________________________
D60: (подпись)
A68: ООО Белпромсистем
A70: Карточка №
A71: учета расхода ДТ автомобилем
A72: Марка автомобиля МЕРСЕДЕС БЕНЦ 208 D | G72: государственный номерной знак 8060 АМ-7
A73: за февраль 2006 года
A75: Материально ответственное лицо
A76: Звездов О В
B77: ДТ
A78: Число месяца | B78: Номер путевого листа | C78: Ф.И.О. водителя | D78: Показание спидометра перед поездкой | E78: Пробег , км | F78: Показание спидометра после поездки | H78: Остаток топлива при выезде, л. | I78: Приобретено топлива на АЗС, л. | J78: Остаток топлива при возврате, л | K78: Расход топлива по норме, л. | L78: Расход топлива фактически, л.
A79: 2000-11-28 | B79: 401421 | C79: Свентицкий А.М. | D79: 478048 | E79: 200 | F79: =D79+E79 -> 478248 | H79: 497.89 | J79: =H79+#REF!-K79+I79 ->  | K79: =#REF!+#REF! -> 
A80: 2000-12-04 | C80: Свентицкий А.М. | H80: 440.54 | J80: =H80+#REF!-K80+I80 -> 
A81: 2000-12-07 | B81: 401422 | C81: Свентицкий А.М. | D81: =F79 -> 478248 | E81: 410 | F81: =D81+E81 -> 478658 | H81: 240.54 | I81: 250.02 | J81: =H81+#REF!-K81+I81 ->  | K81: =#REF!+#REF! -> 
A82: 2000-12-13 | B82: 401423 | C82: Свентицкий А.М. | D82: =F81 -> 478658 | E82: 263 | F82: =D82+E82 -> 478921 | H82: =J81 ->  | J82: =H82+#REF!-K82+I82 ->  | K82: =#REF!+#REF! -> 
A83: 2000-12-13 | B83: 401424 | C83: Свентицкий А.М. | D83: =F82 -> 478921 | E83: 826 | F83: =D83+E83 -> 479747 | H83: =J82 ->  | I83: 185.05 | J83: =H83+#REF!-K83+I83 ->  | K83: =#REF!+#REF! -> 
A84: 2000-12-15 | B84: 186080 | C84: Свентицкий А.М. | D84: =F83 -> 479747 | E84: 1400 | F84: =D84+E84 -> 481147 | H84: =J83 ->  | I84: 334 | J84: =H84+#REF!-K84+I84 ->  | K84: =#REF!+#REF! -> 
A85: 2000-12-19 | B85: 186078 | C85: Свентицкий А.М. | D85: =F84 -> 481147 | E85: 1400 | F85: =D85+E85 -> 482547 | H85: =J84 ->  | I85: 197 | J85: =H85+#REF!-K85+I85 ->  | K85: =#REF!+#REF! -> 
H86: =J85 ->  | I86: 230 | J86: =H86+#REF!-K86+I86 ->  | K86: =#REF!+#REF! -> 
A87: ДЕКАБРЬ | C87: ИТОГО | E87: =SUM(E81:E85) -> 4299 | I87: =SUM(I81:I86) -> 1196.07 | K87: =SUM(K81:K86) -> 
A88: 1 | B88: 2 | C88: 3 | D88: 4 | E88: 5 | F88: 6 | G88: 7 | H88: 8 | I88: 9 | J88: 10 | K88: 11 | L88: 12
A89: 2006-02-01 | B89: 1549067 | C89: Звездов О В | D89: =F44 -> 361513 | E89: =7*2+4*2+160 -> 182 | F89: =D89+E89 -> 361695 | G89: город, за городом | H89: 32.78 | J89: =ROUND(H89+I89-K89,2) -> 16.24 | K89: =2.07+14.47 -> 16.54 | L89: =K89 -> 16.54 | N89: г. Минск ул. Железнод 27 - г. Борисов ул. Гагарина 46А и обратно | T89: =31*9.4/100 -> 2.914 | U89: =129*8.96/100 -> 11.5584 | V89: =T89+U89 -> 14.4724
A90: 2006-02-02 | B90: 1549875 | C90: Звездов О В | D90: =F89 -> 361695 | E90: 160 | F90: =D90+E90 -> 361855 | G90: город, за городом | H90: =J89 -> 16.24 | I90: 20 | J90: 21.77 | K90: 14.47 | L90: =K90 -> 14.47 | M90: 61662 | N90: г. Минск ул. Железнод 27 - г. Борисов ул. Гагарина 46А и обратно
A91: 2006-02-03 | B91: 1549068 | C91: Звездов О В | D91: 361855 | E91: 160 | F91: 362015 | G91: город, за городом | H91: 21.77 | J91: 7.3 | K91: 14.47 | L91: 14.47 | N91: г. Минск ул. Железнод 27 - г. Борисов ул. Гагарина 46А и обратно
A92: 2006-02-04 | C92: Звездов О В | D92: 362015 | F92: 362015 | G92: город | H92: 7.3 | I92: 55 | J92: 62.3 | K92: =ROUND(9.4/100*E92,2) -> 0 | L92: 0 | M92: 203583
A93: 2006-02-05 | B93: 1549876 | C93: Звездов О В | D93: 362015 | E93: =245*2 -> 490 | F93: 362505 | G93: город, за городом | H93: 62.3 | J93: 18.26 | K93: 44.04 | L93: 44.04 | N93: г. Минск ул. Железнод 27 - г. Береза и обратно | U93: =15*2*9.4/100 -> 2.82 | W93: =460*8.96/100 -> 41.216 | X93: =U93+W93 -> 44.036
A94: 2006-02-06 | C94: Звездов О В | D94: 362505 | F94: 362505 | G94: город | H94: 18.26 | J94: 18.26 | K94: 0 | L94: 0
A95: 2006-02-07 | B95: 1549069 | C95: Звездов О В | D95: 362505 | E95: 230 | F95: 362735 | G95: город | H95: 18.26 | I95: 23 | J95: 19.64 | K95: 21.62 | L95: 21.62 | M95: 207767
A96: 2006-02-08 | C96: Звездов О В | D96: 362735 | F96: 362735 | G96: город | H96: 19.64 | J96: 19.64 | K96: 0 | L96: 0
A97: 2006-02-09 | B97: 1549877 | C97: Звездов О В | D97: 362735 | E97: 15 | F97: 362750 | G97: город | H97: 19.64 | I97: 35 | J97: 53.23 | K97: 1.41 | L97: 1.41 | M97: 8034
A98: 2006-02-10 | B98: 1549878 | C98: Звездов О В | D98: 362750 | E98: 320 | F98: 363070 | G98: город | H98: 53.23 | I98: 20 | J98: 43.15 | K98: 30.08 | L98: 30.08 | M98: 115
A99: 2006-02-11 | C99: Звездов О В | D99: 363070 | F99: 363070 | G99: город | H99: 43.15 | J99: 43.15 | K99: 0 | L99: 0
A100: 2006-02-13 | B100: 1549070 | C100: Звездов О В | D100: 363070 | E100: 480 | F100: 363550 | G100: город | H100: 43.15 | I100: =10.25+50+45 -> 105.25 | J100: 103.28 | K100: 45.12 | L100: 45.12 | M100: 45553,0305,0495,0493
A101: 2006-02-14 | C101: Звездов О В | D101: 363550 | F101: 363550 | G101: город | H101: 103.28 | J101: 103.28 | K101: 0 | L101: 0
A102: 2006-02-15 | C102: Звездов О В | D102: 363550 | F102: 363550 | G102: город | H102: 103.28 | J102: 103.28 | K102: 0 | L102: 0
A103: 2006-02-16 | B103: 1549072 | C103: Звездов О В | D103: 363550 | E103: 360 | F103: 363910 | G103: город | H103: 103.28 | I103: =54.19+8.55 -> 62.74 | J103: 132.18 | K103: 33.84 | L103: 33.84 | M103: 0098,0169,0109
A104: 2006-02-17 | C104: Звездов О В | D104: 363910 | F104: 363910 | G104: город | H104: 132.18 | J104: 132.18 | K104: 0 | L104: 0
A105: 2006-02-19 | B105: 1549879 | C105: Звездов О В | D105: 363910 | E105: 490 | F105: 364400 | G105: город, за городом | H105: 132.18 | J105: 88.14 | K105: 44.04 | L105: 44.04 | N105: г. Минск ул. Железнод 27 - г. Береза и обратно
A106: 2006-02-20 | B106: 1549880 | C106: Звездов О В | D106: 364400 | E106: 130 | F106: 364530 | G106: город | H106: 88.14 | I106: 10 | J106: 85.92 | K106: 12.22 | L106: 12.22 | M106: 0.0633
A107: 2006-02-21 | C107: Звездов О В | D107: 364530 | F107: 364530 | G107: город | H107: 85.92 | J107: 85.92 | K107: 0 | L107: 0
A108: 2006-02-22 | B108: 1549071 | C108: Звездов О В | D108: 364530 | E108: =14*2+17*2 -> 62 | F108: 364592 | G108: город | H108: 85.92 | I108: 8.5 | J108: 88.59 | K108: 5.83 | L108: 5.83 | M108: 231039
A109: 2006-02-23 | C109: Звездов О В | D109: 364592 | F109: 364592 | G109: город | H109: 88.59 | J109: 88.59 | K109: 0 | L109: 0
A110: 2006-02-24 | C110: Звездов О В | D110: 364592 | F110: 364592 | G110: город | H110: 88.59 | J110: 88.59 | K110: 0 | L110: 0
A111: 2006-02-27 | C111: Звездов О В | D111: 364592 | F111: 364592 | G111: город | H111: 88.59 | I111: 10 | J111: 98.59 | K111: 0 | L111: 0 | M111: 91658
A112: 2006-02-28 | B112: 1549881 | C112: Звездов О В | D112: 364592 | E112: 109 | F112: 364701 | G112: город | H112: 98.59 | J112: 88.34 | K112: 10.25 | L112: 10.25
C113: Звездов О В | D113: =#REF! ->  | H113: =#REF! ->  | K113: =ROUND(7.2/100*E113,2) -> 0
C114: Звездов О В | D114: =F113 ->  | H114: =J113 ->  | K114: 0
C115: Звездов О В | K115: 0
C116: Звездов О В | K116: 0
C117: Звездов О В | K117: 0
C118: Звездов О В | K118: 0
C119: Звездов О В | K119: 0
C120: Звездов О В | D120: =#REF! ->  | H120: =#REF! ->  | K120: 0
C121: Звездов О В | D121: =F120 ->  | H121: =J120 ->  | K121: 0
C122: Звездов О В | D122: =F121 ->  | H122: =J121+16 ->  | K122: 0
A123: ИТОГО за месяц | E123: =SUM(E89:E112) -> 3188 | I123: =SUM(I89:I112) -> 349.49 | K123: =SUM(K89:K112) -> 293.93 | L123: =K123 -> 293.93
A125: Составил ФИО _________________
E126: (подпись) | O126: 314.49
A127: Проверил _____________________________________
D128: (подпись)
A134: ООО Белпромсистем
A136: Карточка №
A137: учета расхода ДТ автомобилем
A138: Марка автомобиля МЕРСЕДЕС БЕНЦ 208 D | G138: государственный номерной знак 8060 АМ-7
A139: за март 2006 года
A141: Материально ответственное лицо
A142: Звездов О В
B143: ДТ
A144: Число месяца | B144: Номер путевого листа | C144: Ф.И.О. водителя | D144: Показание спидометра перед поездкой | E144: Пробег , км | F144: Показание спидометра после поездки | H144: Остаток топлива при выезде, л. | I144: Приобретено топлива на АЗС, л. | J144: Остаток топлива при возврате, л | K144: Расход топлива по норме, л. | L144: Расход топлива фактически, л.
A145: 2000-11-28 | B145: 401421 | C145: Свентицкий А.М. | D145: 478048 | E145: 200 | F145: =D145+E145 -> 478248 | H145: 497.89 | J145: =H145+#REF!-K145+I145 ->  | K145: =#REF!+#REF! -> 
A146: 2000-12-04 | C146: Свентицкий А.М. | H146: 440.54 | J146: =H146+#REF!-K146+I146 -> 
A147: 2000-12-07 | B147: 401422 | C147: Свентицкий А.М. | D147: =F145 -> 478248 | E147: 410 | F147: =D147+E147 -> 478658 | H147: 240.54 | I147: 250.02 | J147: =H147+#REF!-K147+I147 ->  | K147: =#REF!+#REF! -> 
A148: 2000-12-13 | B148: 401423 | C148: Свентицкий А.М. | D148: =F147 -> 478658 | E148: 263 | F148: =D148+E148 -> 478921 | H148: =J147 ->  | J148: =H148+#REF!-K148+I148 ->  | K148: =#REF!+#REF! -> 
A149: 2000-12-13 | B149: 401424 | C149: Свентицкий А.М. | D149: =F148 -> 478921 | E149: 826 | F149: =D149+E149 -> 479747 | H149: =J148 ->  | I149: 185.05 | J149: =H149+#REF!-K149+I149 ->  | K149: =#REF!+#REF! -> 
A150: 2000-12-15 | B150: 186080 | C150: Свентицкий А.М. | D150: =F149 -> 479747 | E150: 1400 | F150: =D150+E150 -> 481147 | H150: =J149 ->  | I150: 334 | J150: =H150+#REF!-K150+I150 ->  | K150: =#REF!+#REF! -> 
A151: 2000-12-19 | B151: 186078 | C151: Свентицкий А.М. | D151: =F150 -> 481147 | E151: 1400 | F151: =D151+E151 -> 482547 | H151: =J150 ->  | I151: 197 | J151: =H151+#REF!-K151+I151 ->  | K151: =#REF!+#REF! -> 
H152: =J151 ->  | I152: 230 | J152: =H152+#REF!-K152+I152 ->  | K152: =#REF!+#REF! -> 
A153: ДЕКАБРЬ | C153: ИТОГО | E153: =SUM(E147:E151) -> 4299 | I153: =SUM(I147:I152) -> 1196.07 | K153: =SUM(K147:K152) -> 
A154: 1 | B154: 2 | C154: 3 | D154: 4 | E154: 5 | F154: 6 | G154: 7 | H154: 8 | I154: 9 | J154: 10 | K154: 11 | L154: 12
A155: 2006-03-01 | B155: 1549073 | C155: Звездов О В | D155: =F112 -> 364701 | E155: =7*2+25*2 -> 64 | F155: =D155+E155 -> 364765 | G155: город | H155: 88.34 | I155: 10 | J155: =ROUND(H155+I155-K155,2) -> 92.32 | K155: =ROUND(9.4/100*E155,2) -> 6.02 | L155: =K155 -> 6.02 | M155: 241780 | O155: г. Минск, ул. Железнод 27- г. Солигорск и обратно | T155: =94*9.4/100 -> 8.836 | U155: =216*8.96/100 -> 19.3536 | V155: =T155+U155 -> 28.1896
A156: 2006-03-02 | C156: Звездов О В | D156: =F155 -> 364765 | F156: =D156+E156 -> 364765 | G156: город | H156: =J155 -> 92.32 | J156: 92.32 | K156: 0 | L156: =K156 -> 0
A157: 2006-03-03 | B157: 1549074 | C157: Звездов О В | D157: 364765 | E157: =120*2 -> 240 | F157: 365005 | G157: город, за городом | H157: 92.32 | I157: 25 | J157: 95.64 | K157: 21.68 | L157: 21.68 | M157: 0.0284 | N157: =40*9.4/100 -> 3.76 | O157: г. Минск, ул. Железнод 27- г. Кобрин и обратно | U157: =20*2*9.4/100 -> 3.76 | V157: =554*8.96/100 -> 49.6384 | W157: =U157+V157 -> 53.3984
A158: 2006-03-06 | C158: Звездов О В | D158: 365005 | F158: 365005 | G158: город | H158: 95.64 | J158: 95.64 | K158: 0 | L158: 0 | N158: =200*8.96/100 -> 17.92 | O158: г. Минск, ул. Железнод 27- г. Вилейка и обратно | U158: =15*2*9.4/100 -> 2.82 | V158: =170*8.96/100 -> 15.232 | W158: =U158+V158 -> 18.052
A159: 2006-03-07 | C159: Звездов О В | D159: 365005 | F159: 365005 | G159: город | H159: 95.64 | J159: 95.64 | K159: 0 | L159: 0 | N159: =N157+N158 -> 21.68
A160: 2006-03-08 | C160: Звездов О В | D160: 365005 | F160: 365005 | G160: город | H160: 95.64 | J160: 95.64 | K160: 0 | L160: 0
A161: 2006-03-09 | C161: Звездов О В | D161: 365005 | F161: 365005 | G161: город | H161: 95.64 | J161: 95.64 | K161: 0 | L161: 0
A162: 2006-03-10 | C162: Звездов О В | D162: 365005 | F162: 365005 | G162: город | H162: 95.64 | J162: 95.64 | K162: 0 | L162: 0
A163: 2006-03-13 | C163: Звездов О В | D163: 365005 | F163: 365005 | G163: город | H163: 95.64 | J163: 95.64 | K163: 0 | L163: 0
A164: 2006-03-14 | C164: Звездов О В | D164: 365005 | F164: 365005 | G164: город | H164: 95.64 | J164: 95.64 | K164: 0 | L164: 0
A165: 2006-03-15 | C165: Звездов О В | D165: 365005 | F165: 365005 | G165: город | H165: 95.64 | J165: 95.64 | K165: 0 | L165: 0
A166: 2006-03-16 | C166: Звездов О В | D166: 365005 | F166: 365005 | G166: город | H166: 95.64 | J166: 95.64 | K166: 0 | L166: 0
A167: 2006-03-17 | C167: Звездов О В | D167: 365005 | F167: 365005 | G167: город | H167: 95.64 | J167: 95.64 | K167: 0 | L167: 0
A168: 2006-03-20 | C168: Звездов О В | D168: 365005 | F168: 365005 | G168: город | H168: 95.64 | J168: 95.64 | K168: 0 | L168: 0
A169: 2006-03-21 | B169: 1549075 | C169: Звездов О В | D169: 365005 | E169: =35*2+128+65+170 -> 433 | F169: 365438 | G169: город, за городом | H169: 95.64 | J169: 56.49 | K169: 39.15 | L169: 39.15 | O169: =80*9.4/100 -> 7.52 | P169: =353*8.96/100 -> 31.6288 | Q169: =O169+P169 -> 39.1488
A170: 2006-03-22 | B170: 1549076 | C170: Звездов О В | D170: 365438 | E170: =99+100+160+50*2 -> 459 | F170: 365897 | G170: город, за городом | H170: 56.49 | J170: 14.99 | K170: 41.5 | L170: 41.5 | O170: г. Минск, ул. Железнод 27- аг Олехновичи, у. Радошковичская 43 и обр
A171: 2006-03-23 | C171: Звездов О В | D171: 365897 | F171: 365897 | G171: город | H171: 14.99 | J171: 14.99 | K171: 0 | L171: 0 | O171: =85*9.4/100 -> 7.99 | P171: =374*8.96/100 -> 33.5104 | Q171: =O171+P171 -> 41.5004 | U171: =20*9.4/100 -> 1.88 | V171: =58*8.96/100 -> 5.1968 | W171: =U171+V171 -> 7.0768
A172: 2006-03-24 | C172: Звездов О В | D172: 365897 | F172: 365897 | G172: город | H172: 14.99 | J172: 14.99 | K172: 0 | L172: 0 | O172: г. Минск, ул. Железнод 27- г. Заславль и обратно | U172: =23*9.4/100 -> 2.162 | V172: =53*8.96/100 -> 4.7488 | W172: =U172+V172 -> 6.9108
A173: 2006-03-27 | C173: Звездов О В | D173: 365897 | F173: 365897 | G173: город | H173: 14.99 | I173: 10 | J173: 24.99 | K173: 0 | L173: 0 | M173: 0049 | O173: г. Минск, ул. Железнод 27-г. Минск ул. Жудро 37-27 и обратно
A174: 2006-03-28 | C174: Звездов О В | D174: 365897 | F174: 365897 | G174: город | H174: 24.99 | J174: 24.99 | K174: 0 | L174: 0
A175: 2006-03-29 | B175: 1549078 | C175: Звездов О В | D175: 365897 | E175: =164+80+260 -> 504 | F175: 366401 | G175: город, за городом | H175: 24.99 | I175: 21.3 | J175: 0.56 | K175: 45.73 | L175: 45.73 | M175: 0329
A176: 2006-03-30 | C176: Звездов О В | D176: 366401 | F176: 366401 | G176: город | H176: 0.56 | J176: 0.56 | K176: 0 | L176: 0
A177: 2006-03-31 | C177: Звездов О В | D177: 366401 | F177: 366401 | G177: город | H177: 0.56 | J177: 0.56 | K177: 0 | L177: 0 | O177: г. Минск, ул. Железнод 27-г. Лида и обратно | U177: =20*2*9.4/100 -> 3.76 | V177: =374*8.96/100 -> 33.5104 | W177: =U177+V177 -> 37.2704
C178: Звездов О В | D178: =#REF! ->  | F178: =D178+E178 ->  | H178: =#REF! ->  | K178: =ROUND(7.2/100*E178,2) -> 0
C179: Звездов О В | D179: =F178 ->  | H179: =J178 ->  | K179: 0
C180: Звездов О В | K180: 0
C181: Звездов О В | K181: 0
C182: Звездов О В | K182: 0
C183: Звездов О В | K183: 0
C184: Звездов О В | K184: 0
C185: Звездов О В | D185: =#REF! ->  | H185: =#REF! ->  | K185: 0
C186: Звездов О В | D186: =F185 ->  | H186: =J185 ->  | K186: 0
C187: Звездов О В | D187: =F186 ->  | H187: =J186+16 ->  | K187: 0
A188: ИТОГО за месяц | E188: =SUM(E155:E177) -> 1700 | I188: =SUM(I155:I177) -> 66.3 | K188: =SUM(K155:K177) -> 154.08 | L188: =K188 -> 154.08
A190: Составил ФИО _________________ | P190: =70*9.4/100 -> 6.58 | Q190: =437*8.96/100 -> 39.1552 | R190: =P190+Q190 -> 45.7352
E191: (подпись)
A192: Проверил _____________________________________
D193: (подпись)
A200: ООО Белпромсистем
A202: Карточка №
A203: учета расхода ДТ автомобилем
A204: Марка автомобиля МЕРСЕДЕС БЕНЦ 208 D | G204: государственный номерной знак 8060 АМ-7
A205: за апрель 2006 года
A207: Материально ответственное лицо
A208: Звездов О В
B209: ДТ
A210: Число месяца | B210: Номер путевого листа | C210: Ф.И.О. водителя | D210: Показание спидометра перед поездкой | E210: Пробег , км | F210: Показание спидометра после поездки | H210: Остаток топлива при выезде, л. | I210: Приобретено топлива на АЗС, л. | J210: Остаток топлива при возврате, л | K210: Расход топлива по норме, л. | L210: Расход топлива фактически, л.
A211: 2000-11-28 | B211: 401421 | C211: Свентицкий А.М. | D211: 478048 | E211: 200 | F211: =D211+E211 -> 478248 | H211: 497.89 | J211: =H211+#REF!-K211+I211 ->  | K211: =#REF!+#REF! -> 
A212: 2000-12-04 | C212: Свентицкий А.М. | H212: 440.54 | J212: =H212+#REF!-K212+I212 -> 
A213: 2000-12-07 | B213: 401422 | C213: Свентицкий А.М. | D213: =F211 -> 478248 | E213: 410 | F213: =D213+E213 -> 478658 | H213: 240.54 | I213: 250.02 | J213: =H213+#REF!-K213+I213 ->  | K213: =#REF!+#REF! -> 
A214: 2000-12-13 | B214: 401423 | C214: Свентицкий А.М. | D214: =F213 -> 478658 | E214: 263 | F214: =D214+E214 -> 478921 | H214: =J213 ->  | J214: =H214+#REF!-K214+I214 ->  | K214: =#REF!+#REF! -> 
A215: 2000-12-13 | B215: 401424 | C215: Свентицкий А.М. | D215: =F214 -> 478921 | E215: 826 | F215: =D215+E215 -> 479747 | H215: =J214 ->  | I215: 185.05 | J215: =H215+#REF!-K215+I215 ->  | K215: =#REF!+#REF! -> 
A216: 2000-12-15 | B216: 186080 | C216: Свентицкий А.М. | D216: =F215 -> 479747 | E216: 1400 | F216: =D216+E216 -> 481147 | H216: =J215 ->  | I216: 334 | J216: =H216+#REF!-K216+I216 ->  | K216: =#REF!+#REF! -> 
A217: 2000-12-19 | B217: 186078 | C217: Свентицкий А.М. | D217: =F216 -> 481147 | E217: 1400 | F217: =D217+E217 -> 482547 | H217: =J216 ->  | I217: 197 | J217: =H217+#REF!-K217+I217 ->  | K217: =#REF!+#REF! -> 
H218: =J217 ->  | I218: 230 | J218: =H218+#REF!-K218+I218 ->  | K218: =#REF!+#REF! -> 
A219: ДЕКАБРЬ | C219: ИТОГО | E219: =SUM(E213:E217) -> 4299 | I219: =SUM(I213:I218) -> 1196.07 | K219: =SUM(K213:K218) -> 
A220: 1 | B220: 2 | C220: 3 | D220: 4 | E220: 5 | F220: 6 | G220: 7 | H220: 8 | I220: 9 | J220: 10 | K220: 11 | L220: 12
A221: 2006-04-03 | B221: 1549079 | C221: Звездов О В | D221: =F177 -> 366401 | E221: 5 | F221: =D221+E221 -> 366406 | G221: город | H221: 0.56 | J221: =ROUND(H221+I221-K221,2) -> 0.09 | K221: =ROUND(9.4/100*E221,2) -> 0.47 | L221: =K221 -> 0.47 | O221: г. Минск, ул. Железнод 27-Пинский р-н д. Вяз и обратно | T221: нет топлива
A222: 2006-04-04 | C222: Звездов О В | D222: =F221 -> 366406 | F222: =D222+E222 -> 366406 | G222: город | H222: =J221 -> 0.09 | J222: 0.09 | K222: =ROUND(9.4/100*E222,2) -> 0 | L222: =K222 -> 0 | O222: г. Минск ул. Железнод 27 - г. Береза и обратно | T222: нет топлива
A223: 2006-04-05 | C223: Звездов О В | D223: 366406 | F223: 366406 | G223: город | H223: 0.09 | J223: 0.09 | K223: 0 | L223: 0 | O223: г. Минск, ул. Железнод 27-г. Брест и обратно | T223: нет топлива
A224: 2006-04-06 | B224: 1549080 | C224: Звездов О В | D224: 366406 | E224: 45 | F224: 366451 | G224: город | H224: 0.09 | I224: 20.72 | J224: 16.58 | K224: 4.23 | L224: 4.23 | M224: 195953
A225: 2006-04-07 | C225: Звездов О В | D225: 366451 | F225: 366451 | G225: город | H225: 16.58 | J225: 16.58 | K225: 0 | L225: 0
A226: 2006-04-10 | C226: Звездов О В | D226: 366451 | F226: 366451 | G226: город | H226: 16.58 | I226: =10+7 -> 17 | J226: 33.58 | K226: 0 | L226: 0 | M226: 3259.13891
A227: 2006-04-11 | B227: 1549081 | C227: Звездов О В | D227: 366451 | E227: =21*2 -> 42 | F227: 366493 | G227: город | H227: 33.58 | I227: =27.11+18.2 -> 45.31 | J227: 74.94 | K227: 3.95 | L227: 3.95 | M227: ,0013,0570,0012
A228: 2006-04-12 | C228: Звездов О В | D228: 366493 | F228: 366493 | G228: город | H228: 74.94 | J228: 74.94 | K228: 0 | L228: 0
A229: 2006-04-13 | C229: Звездов О В | D229: 366493 | F229: 366493 | G229: город | H229: 74.94 | J229: 74.94 | K229: 0 | L229: 0
... 488 more rows

Sheet ПЛ лицевая
G1: ПУТЕВОЙ ЛИСТ № | K1: 1 | N1: Автомобиль | P1: Автомобиль
A2: ООО "Пример" | G2: служебного легкового автомобиля | P2: (марка, регистрационный знак)
A4: наименование организации | P4: 10-01 АА-7
A6: г. Минск | N6: Водитель | P6: Иванов И.И., Петров П.П.
A7: адрес | P7: (фамилия, инициалы)
G9: =IF(A15="","",DAY(A15)) ->  | H9: по | I9: =IF(C40="","",DAY(C40)) ->  | J9: =CHOOSE(MONTH(A15), "января","февраля","марта","апреля","мая","июня", "июля","августа","сентября","октября","ноября","декабря") -> января | L9: 2026 | M9: г. | N9: Водительское удостоверение
A11: Дата (число, месяц) | B11: Время (ч, мин) | E11: Показания спидометра | G11: Пробег, км | H11: Движение топлива | O11: Автомобиль техничекски исправен | Q11: При возвращении автомобиль
B12: выезда | C12: возвра-щения | D12: в наряде | E12: при выезде | F12: при возвра-ении | H12: остаток топлива, л | J12: заправлено топлива | L12: расход топлива, л
H13: при выезде | I13: при возвра-щении | J13: марка топлива | K13: количество, л | L13: по норме | M13: фактически | N13: экономия, перерасход | O13: выезд разрешен | P13: принял | Q13: сдал | R13: принял
A14: 1 | B14: 2 | C14: 3 | D14: 4 | E14: 5 | F14: 6 | G14: 7 | H14: 8 | I14: 9 | J14: 10 | K14: 11 | L14: 13 | M14: 14 | N14: 15 | O14: 16 | P14: 17 | Q14: 18 | R14: 19
A39: Итого за период
A40: =IF(COUNTA(A15:A38)=0,"",MIN(A15:A38)) ->  | B40: по | C40: =IF(COUNT(A15:A38)=0,"",MAX(A15:A38)) ->  | E40: Х | F40: Х | G40: =SUM(G15:G38) -> 0 | H40: Х | I40: Х | K40: =SUM(K15:K38) -> 0 | L40: =SUM(L15:L39) -> 0 | M40: =SUM(M15:M39) -> 0 | O40: Х | P40: Х | Q40: Х | R40: Х

Sheet ПЛ обратная
A1: Выполненные задания | H1: 1
A3: Дата (число, месяц) | B3: Маршрут следования | D3: Пробег, км | E3: Подпись лица пользовавшегося автомобилем | F3: Прочие сведения
B4: откуда | C4: куда
A5: 21 | B5: 22 | C5: 23 | D5: 24 | E5: 25 | F5: 26
A30: Итого за месяц: | D30: =SUM(D6:D29) -> 0
A31: Для расчетов:

Sheet 1
A1: ООО "Пример" | N1: линейная норма | P1: 13,2 л | S1: бак | T1: 72 | U1: литра
N3: Минск | P3: 15.3 | Q3: л
N4: город | P4: 13.2 | Q4: л
A5: =WORKDAY(DATE(2026, J6 + 1, 1), -1) -> 2026-01-30 | N5: за городом | P5: 14 | Q5: л
I6: Карточка № | J6: 1
A7: учета расхода бинзина АИ-92 автомобилем
A8: Марка автомобиля Автомобиль | I8: Регистрационный номер 10-01 АА-7
H9: за | I9: =CHOOSE(J6, "январь","февраль","март","апрель","май","июнь","июль","август","сентябрь","октябрь","ноябрь","декабрь") -> январь | J9: 2026 года
A11: Водитель: | C11: Иванов И.И., Петров П.П.
A13: Число месяца | B13: Номер путевого листа | C13: Ф.И.О. водителя | D13: Показание спидометра перед поездкой | E13: Пробег , км за городом | F13: Пробег , км город | G13: Пробег , км Общий | H13: Показание спидометра после поездки | I13: Служебное задание (маршрут следования) | J13: Остаток топлива при выезде, л. | K13: Приобретено топлива на АЗС, л. | L13: Остаток топлива при возврате, л | M13: Расход топлива по норме, л. Трасса | N13: Расход топлива по норме, л. | O13: Расход топлива по норме, л. Общий | P13: Расход топлива фактически, л. | Q13: Результат работы (экономия/перерасход)
A14: 1 | B14: 2 | C14: 3 | D14: 4 | E14: 5 | F14: 6 | G14: 7 | H14: 8 | I14: 9 | J14: 10 | K14: 11 | L14: 12 | M14: 13 | N14: 14 | O14: 15 | P14: 16 | Q14: 17
A15: 2026-01-05 | B15: =$J$6 -> 1 | C15: Петров П.П. | D15: 100000 | F15: 24 | G15: =E15+F15 -> 24 | H15: =D15+G15 -> 100024 | I15: Минск | J15: 40 | L15: =ROUND(J15+K15-O15,2) -> 36.33 | M15: =ROUND($P$5/100*E15,2) -> 0 | N15: =ROUND(IF(I15="Минск",$P$3/100*F15,$P$4/100*F15),2) -> 3.67 | O15: =M15+N15 -> 3.67 | P15: =O15 -> 3.67 | Q15: =P15-O15 -> 0 | R15: =IF(WORKDAY(A15-1, 1)=A15, "Рабочий день", "Выходной") -> Рабочий день
A16: 2026-01-06 | B16: =$J$6 -> 1 | C16: Иванов И.И. | D16: =H15 -> 100024 | F16: 32 | G16: =E16+F16 -> 32 | H16: 100056 | I16: Минск | J16: =L15 -> 36.33 | L16: 31.43 | M16: =ROUND($P$5/100*E16,2) -> 0 | N16: =ROUND(IF(I16="Минск",$P$3/100*F16,$P$4/100*F16),2) -> 4.9 | O16: =M16+N16 -> 4.9 | P16: =O16 -> 4.9 | Q16: =P16-O16 -> 0 | R16: Рабочий день
A17: 2026-01-08 | B17: =$J$6 -> 1 | C17: Петров П.П. | D17: 100056 | F17: 28 | G17: 28 | H17: 100084 | I17: Минск | J17: =L16 -> 31.43 | L17: 27.15 | M17: =ROUND($P$5/100*E17,2) -> 0 | N17: =ROUND(IF(I17="Минск",$P$3/100*F17,$P$4/100*F17),2) -> 4.28 | O17: =M17+N17 -> 4.28 | P17: 4.28 | Q17: 0 | R17: Рабочий день
A18: 2026-01-09 | B18: 1 | C18: Иванов И.И. | D18: 100084 | F18: 36 | G18: 36 | H18: 100120 | I18: Минск | J18: 27.15 | L18: 21.64 | M18: 0 | N18: 5.51 | O18: 5.51 | P18: =O18 -> 5.51 | Q18: 0 | R18: Рабочий день
A19: 2026-01-12 | B19: 1 | C19: Иванов И.И. | D19: 100120 | F19: 39 | G19: 39 | H19: 100159 | I19: Минск | J19: 21.64 | K19: 40 | L19: 55.67 | M19: 0 | N19: 5.97 | O19: =M19+N19 -> 5.97 | P19: =O19 -> 5.97 | Q19: =P19-O19 -> 0 | R19: Рабочий день
A20: 2026-01-12 | B20: 1 | C20: Петров П.П. | D20: 100159 | F20: 28 | G20: 28 | H20: 100187 | I20: Минск | J20: 55.67 | L20: 51.39 | M20: 0 | N20: 4.28 | O20: =M20+N20 -> 4.28 | P20: =O20 -> 4.28 | Q20: =P20-O20 -> 0 | R20: Рабочий день
A21: 2026-01-13 | B21: 1 | C21: Иванов И.И. | D21: 100187 | E21: 498 | F21: 35 | G21: 533 | H21: 100720 | I21: Минск - Могилёв-Минск | J21: 51.39 | K21: 60 | L21: 37.05 | M21: 69.72 | N21: 4.62 | O21: 74.34 | P21: 74.34 | Q21: 0 | R21: Рабочий день
A22: 2026-01-14 | B22: 1 | C22: Иванов И.И. | D22: 100720 | F22: 41 | G22: 41 | H22: 100761 | I22: Минск | J22: 37.05 | L22: 30.78 | M22: 0 | N22: 6.27 | O22: 6.27 | P22: 6.27 | Q22: 0 | R22: Рабочий день
A23: 2026-01-15 | B23: 1 | C23: Иванов И.И. | D23: 100761 | F23: 32 | G23: 32 | H23: 100793 | I23: Минск | J23: 30.78 | L23: 25.88 | M23: 0 | N23: =ROUND(IF(I23="Минск",$P$3/100*F23,$P$4/100*F23),2) -> 4.9 | O23: 4.9 | P23: 4.9 | Q23: 0 | R23: Рабочий день
A24: 2026-01-16 | B24: 1 | C24: Петров П.П. | D24: 100793 | F24: 28 | G24: 28 | H24: 100821 | I24: Минск | J24: 25.88 | K24: 40 | L24: 61.6 | M24: 0 | N24: 4.28 | O24: 4.28 | P24: 4.28 | Q24: 0 | R24: Рабочий день
A25: 2026-01-19 | B25: 1 | C25: Иванов И.И. | D25: 100821 | F25: 17 | G25: 17 | H25: 100838 | I25: Минск | J25: 61.6 | L25: 59 | M25: 0 | N25: 2.6 | O25: 2.6 | P25: 2.6 | Q25: 0 | R25: Рабочий день
A26: 2026-01-20 | B26: 1 | C26: Иванов И.И. | D26: 100838 | F26: 44 | G26: 44 | H26: 100882 | I26: Минск | J26: 59 | L26: 52.27 | M26: 0 | N26: 6.73 | O26: 6.73 | P26: 6.73 | Q26: 0 | R26: Рабочий день
A27: 2026-01-21 | B27: 1 | C27: Иванов И.И. | D27: 100882 | E27: 299 | F27: 34 | G27: 333 | H27: 101215 | I27: Минск - Гродно | J27: 52.27 | K27: 40 | L27: 45.92 | M27: 41.86 | N27: 4.49 | O27: 46.35 | P27: 46.35 | Q27: 0 | R27: Рабочий день
A28: 2026-01-22 | B28: 1 | C28: Иванов И.И. | D28: 101215 | F28: 56 | G28: 56 | H28: 101271 | I28: Гродно | J28: 45.92 | K28: 40 | L28: 78.53 | M28: 0 | N28: 7.39 | O28: 7.39 | P28: 7.39 | Q28: 0 | R28: Рабочий день
A29: 2026-01-23 | B29: 1 | C29: Иванов И.И. | D29: 101271 | E29: 299 | F29: 44 | G29: 343 | H29: 101614 | I29: Гродно-Минск | J29: 78.53 | L29: 30.86 | M29: 41.86 | N29: 5.81 | O29: 47.67 | P29: 47.67 | Q29: 0 | R29: Рабочий день
A30: 2026-01-26 | B30: 1 | C30: Иванов И.И. | D30: 101614 | F30: 28 | G30: 28 | H30: 101642 | I30: Минск | J30: 30.86 | K30: 50 | L30: 76.58 | M30: 0 | N30: 4.28 | O30: 4.28 | P30: 4.28 | Q30: 0 | R30: Рабочий день
A31: 2026-01-27 | B31: 1 | C31: Иванов И.И. | D31: 101642 | F31: 35 | G31: 35 | H31: 101677 | I31: Минск | J31: 76.58 | L31: 71.22 | M31: 0 | N31: 5.36 | O31: 5.36 | P31: 5.36 | Q31: 0 | R31: Рабочий день
A32: 2026-01-28 | B32: 1 | C32: Иванов И.И. | D32: 101677 | F32: 21 | G32: 21 | H32: 101698 | I32: Минск | J32: 71.22 | L32: 68.01 | M32: 0 | N32: 3.21 | O32: 3.21 | P32: 3.21 | Q32: 0 | R32: Рабочий день
A33: 2026-01-29 | B33: 1 | C33: Иванов И.И. | D33: 101698 | F33: 16 | G33: 16 | H33: 101714 | I33: Минск | J33: 68.01 | L33: 65.56 | M33: 0 | N33: 2.45 | O33: 2.45 | P33: 2.45 | Q33: 0 | R33: Рабочий день
A34: 2026-01-30 | B34: 1 | C34: Иванов И.И. | D34: 101714 | F34: 18 | G34: 18 | H34: 101732 | I34: Минск | J34: 65.56 | L34: =ROUND(J34+K34-O34,2) -> 62.81 | M34: 0 | N34: 2.75 | O34: =M34+N34 -> 2.75 | P34: =O34 -> 2.75 | Q34: =P34-O34 -> 0 | R34: Рабочий день
A39: ИТОГО за месяц | E39: =SUM(E15:E38) -> 1096 | F39: =SUM(F15:F38) -> 636 | G39: =SUM(G15:G38) -> 1732 | K39: =SUM(K15:K38) -> 270 | M39: =SUM(M15:M38) -> 153.44 | N39: =SUM(N15:N38) -> 93.75 | O39: =SUM(O15:O38) -> 247.19 | P39: =SUM(P15:P38) -> 247.19 | Q39: =SUM(Q15:Q38) -> 0
G40: =E39+F39 -> 1732
A41: Составил | J41: Проверил

Sheet 2
A1: ООО "Пример" | N1: линейная норма | P1: 13,2 л | S1: бак | T1: 72 | U1: литра
N3: Минск | P3: 15.3 | Q3: л
N4: город | P4: 13.2 | Q4: л
A5: =WORKDAY(DATE(2026, J6 + 1, 1), -1) -> 2026-02-27 | N5: за городом | P5: 14 | Q5: л
I6: Карточка № | J6: 2
A7: учета расхода бинзина АИ-92 автомобилем
A8: Марка автомобиля Автомобиль | I8: Регистрационный номер 10-01 АА-7
H9: за | I9: =CHOOSE(J6, "январь","февраль","март","апрель","май","июнь","июль","август","сентябрь","октябрь","ноябрь","декабрь") -> февраль | J9: 2026 года
A11: Водитель: | C11: Иванов И.И.
A13: Число месяца | B13: Номер путевого листа | C13: Ф.И.О. водителя | D13: Показание спидометра перед поездкой | E13: Пробег , км за городом | F13: Пробег , км город | G13: Пробег , км Общий | H13: Показание спидометра после поездки | I13: Служебное задание (маршрут следования) | J13: Остаток топлива при выезде, л. | K13: Приобретено топлива на АЗС, л. | L13: Остаток топлива при возврате, л | M13: Расход топлива по норме, л. Трасса | N13: Расход топлива по норме, л. | O13: Расход топлива по норме, л. Общий | P13: Расход топлива фактически, л. | Q13: Результат работы (экономия/перерасход)
A14: 1 | B14: 2 | C14: 3 | D14: 4 | E14: 5 | F14: 6 | G14: 7 | H14: 8 | I14: 9 | J14: 10 | K14: 11 | L14: 12 | M14: 13 | N14: 14 | O14: 15 | P14: 16 | Q14: 17
A15: 2026-02-02 | B15: =$J$6 -> 2 | C15: Иванов И.И. | D15: ='1'!H34 -> 101732 | H15: =D15+G15 -> 101732 | I15: Минск | J15: ='1'!L34 -> 62.81 | L15: =ROUND(J15+K15-O15,2) -> 62.81 | M15: =ROUND($P$5/100*E15,2) -> 0 | N15: =ROUND(IF(I15="Минск",$P$3/100*F15,$P$4/100*F15),2) -> 0 | O15: =M15+N15 -> 0 | P15: =O15 -> 0 | Q15: =P15-O15 -> 0 | R15: =IF(WORKDAY(A15-1, 1)=A15, "Рабочий день", "Выходной") -> Рабочий день
A16: 2026-02-04 | B16: =$J$6 -> 2 | C16: Иванов И.И. | D16: =H15 -> 101732 | H16: 101732 | I16: Минск | J16: =L15 -> 62.81 | L16: 62.81 | M16: =ROUND($P$5/100*E16,2) -> 0 | N16: =ROUND(IF(I16="Минск",$P$3/100*F16,$P$4/100*F16),2) -> 0 | O16: =M16+N16 -> 0 | P16: 0 | Q16: =P16-O16 -> 0 | R16: Рабочий день
A17: 2026-02-04 | B17: =$J$6 -> 2 | C17: Иванов И.И. | D17: =H16 -> 101732 | H17: 101732 | I17: Минск | J17: 62.81 | L17: 62.81 | M17: 0 | N17: 0 | O17: 0 | P17: 0 | Q17: 0 | R17: Рабочий день
A18: 2026-02-05 | B18: 2 | C18: Иванов И.И. | D18: 101732 | H18: 101732 | I18: Минск | J18: 62.81 | L18: 62.81 | M18: 0 | N18: 0 | O18: 0 | P18: 0 | Q18: 0 | R18: Рабочий день
A19: 2026-02-06 | B19: 2 | C19: Иванов И.И. | D19: 101732 | H19: 101732 | I19: Минск | J19: 62.81 | L19: 62.81 | M19: 0 | N19: 0 | O19: 0 | P19: 0 | Q19: 0 | R19: Рабочий день
A20: 2026-02-09 | B20: 2 | C20: Иванов И.И. | D20: 101732 | H20: 101732 | I20: Минск | J20: 62.81 | L20: 62.81 | M20: 0 | N20: 0 | O20: 0 | P20: 0 | Q20: 0 | R20: Рабочий день
A21: 2026-02-10 | B21: 2 | C21: Иванов И.И. | D21: 101732 | H21: 101732 | I21: Минск | J21: 62.81 | L21: 62.81 | M21: 0 | N21: 0 | O21: 0 | P21: 0 | Q21: 0 | R21: Рабочий день
A22: 2026-02-11 | B22: 2 | C22: Иванов И.И. | D22: 101732 | H22: 101732 | I22: Минск | J22: 62.81 | L22: 62.81 | M22: 0 | N22: 0 | O22: 0 | P22: 0 | Q22: 0 | R22: Рабочий день
A23: 2026-02-12 | B23: 2 | C23: Иванов И.И. | D23: 101732 | H23: 101732 | I23: Минск | J23: 62.81 | L23: 62.81 | M23: 0 | N23: 0 | O23: 0 | P23: 0 | Q23: 0 | R23: Рабочий день
A24: 2026-02-13 | B24: 2 | C24: Иванов И.И. | D24: 101732 | H24: 101732 | I24: Минск | J24: 62.81 | L24: 62.81 | M24: 0 | N24: 0 | O24: 0 | P24: 0 | Q24: 0 | R24: Рабочий день
A25: 2026-02-16 | B25: 2 | C25: Иванов И.И. | D25: 101732 | H25: 101732 | I25: Минск | J25: 62.81 | L25: 62.81 | M25: 0 | N25: 0 | O25: 0 | P25: 0 | Q25: 0 | R25: Рабочий день
A26: 2026-02-17 | B26: 2 | C26: Иванов И.И. | D26: 101732 | H26: 101732 | I26: Минск | J26: 62.81 | L26: 62.81 | M26: 0 | N26: 0 | O26: 0 | P26: 0 | Q26: 0 | R26: Рабочий день
A27: 2026-02-18 | B27: 2 | C27: Иванов И.И. | D27: 101732 | H27: 101732 | I27: Минск | J27: 62.81 | L27: 62.81 | M27: 0 | N27: 0 | O27: 0 | P27: 0 | Q27: 0 | R27: Рабочий день
A28: 2026-02-19 | B28: 2 | C28: Иванов И.И. | D28: 101732 | H28: 101732 | I28: Минск | J28: 62.81 | L28: 62.81 | M28: 0 | N28: 0 | O28: 0 | P28: 0 | Q28: 0 | R28: Рабочий день
A29: 2026-02-20 | B29: 2 | C29: Иванов И.И. | D29: 101732 | H29: 101732 | I29: Минск | J29: 62.81 | L29: 62.81 | M29: 0 | N29: 0 | O29: 0 | P29: 0 | Q29: 0 | R29: Рабочий день
A30: 2026-02-23 | B30: 2 | C30: Иванов И.И. | D30: 101732 | H30: 101732 | I30: Минск | J30: 62.81 | L30: 62.81 | M30: 0 | N30: 0 | O30: 0 | P30: 0 | Q30: 0 | R30: Рабочий день
A31: 2026-02-24 | B31: 2 | C31: Иванов И.И. | D31: 101732 | H31: 101732 | I31: Минск | J31: 62.81 | L31: 62.81 | M31: 0 | N31: 0 | O31: 0 | P31: 0 | Q31: 0 | R31: Рабочий день
A32: 2026-02-25 | B32: 2 | C32: Иванов И.И. | D32: 101732 | H32: 101732 | I32: Минск | J32: 62.81 | L32: 62.81 | M32: 0 | N32: 0 | O32: 0 | P32: 0 | Q32: 0 | R32: Рабочий день
A33: 2026-02-26 | B33: 2 | C33: Иванов И.И. | D33: 101732 | H33: 101732 | I33: Минск | J33: 62.81 | L33: 62.81 | M33: 0 | N33: 0 | O33: 0 | P33: 0 | Q33: 0 | R33: Рабочий день
A34: 2026-02-27 | B34: 2 | C34: Иванов И.И. | D34: 101732 | H34: 101732 | I34: Минск | J34: 62.81 | L34: 62.81 | M34: 0 | N34: 0 | O34: 0 | P34: 0 | Q34: 0 | R34: Рабочий день
A39: ИТОГО за месяц | E39: =SUM(E15:E38) -> 0 | F39: =SUM(F15:F38) -> 0 | G39: =SUM(G15:G38) -> 0 | K39: =SUM(K15:K38) -> 0 | M39: =SUM(M15:M38) -> 0 | N39: =SUM(N15:N38) -> 0 | O39: =SUM(O15:O38) -> 0 | P39: =SUM(P15:P38) -> 0 | Q39: =SUM(Q15:Q38) -> 0
G40: =E39+F39 -> 0
A41: Составил | J41: Проверил

Sheet 3
A1: ООО "Пример" | N1: линейная норма | P1: 13,2 л | S1: бак | T1: 72 | U1: литра
N3: Минск | P3: 15.3 | Q3: л
N4: город | P4: 13.2 | Q4: л
A5: =WORKDAY(DATE(2026, J6 + 1, 1), -1) -> 2026-03-31 | N5: за городом | P5: 14 | Q5: л
I6: Карточка № | J6: 3
A7: учета расхода бинзина АИ-92 автомобилем
A8: Марка автомобиля Автомобиль | I8: Регистрационный номер 10-01 АА-7
H9: за | I9: =CHOOSE(J6, "январь","февраль","март","апрель","май","июнь","июль","август","сентябрь","октябрь","ноябрь","декабрь") -> март | J9: 2026 года
A11: Водитель: | C11: Иванов И.И.
A13: Число месяца | B13: Номер путевого листа | C13: Ф.И.О. водителя | D13: Показание спидометра перед поездкой | E13: Пробег , км за городом | F13: Пробег , км город | G13: Пробег , км Общий | H13: Показание спидометра после поездки | I13: Служебное задание (маршрут следования) | J13: Остаток топлива при выезде, л. | K13: Приобретено топлива на АЗС, л. | L13: Остаток топлива при возврате, л | M13: Расход топлива по норме, л. Трасса | N13: Расход топлива по норме, л. | O13: Расход топлива по норме, л. Общий | P13: Расход топлива фактически, л. | Q13: Результат работы (экономия/перерасход)
A14: 1 | B14: 2 | C14: 3 | D14: 4 | E14: 5 | F14: 6 | G14: 7 | H14: 8 | I14: 9 | J14: 10 | K14: 11 | L14: 12 | M14: 13 | N14: 14 | O14: 15 | P14: 16 | Q14: 17
A15: 2026-03-02 | B15: =$J$6 -> 3 | C15: Иванов И.И. | D15: ='2'!H34 -> 101732 | H15: =D15+G15 -> 101732 | I15: Минск | J15: ='2'!L34 -> 62.81 | L15: =ROUND(J15+K15-O15,2) -> 62.81 | M15: =ROUND($P$5/100*E15,2) -> 0 | N15: =ROUND(IF(I15="Минск",$P$3/100*F15,$P$4/100*F15),2) -> 0 | O15: =M15+N15 -> 0 | P15: =O15 -> 0 | Q15: =P15-O15 -> 0 | R15: =IF(WORKDAY(A15-1, 1)=A15, "Рабочий день", "Выходной") -> Рабочий день
A16: 2026-03-03 | B16: =$J$6 -> 3 | C16: Иванов И.И. | D16: =H15 -> 101732 | H16: 101732 | I16: Минск | J16: =L15 -> 62.81 | L16: =J16+K16-O16 -> 62.81 | M16: =ROUND($P$5/100*E16,2) -> 0 | N16: =ROUND(IF(I16="Минск",$P$3/100*F16,$P$4/100*F16),2) -> 0 | O16: =M16+N16 -> 0 | P16: =O16 -> 0 | Q16: =P16-O16 -> 0 | R16: Рабочий день
A17: 2026-03-04 | B17: =$J$6 -> 3 | C17: Иванов И.И. | D17: 101732 | H17: 101732 | I17: Минск | J17: =L16 -> 62.81 | L17: =J17+K17-O17 -> 62.81 | M17: 0 | N17: 0 | O17: =M17+N17 -> 0 | P17: 0 | Q17: =P17-O17 -> 0 | R17: Рабочий день
A18: 2026-03-05 | B18: 3 | C18: Иванов И.И. | D18: 101732 | H18: 101732 | I18: Минск | J18: 62.81 | L18: 62.81 | M18: 0 | N18: 0 | O18: 0 | P18: 0 | Q18: 0 | R18: Рабочий день
A19: 2026-03-06 | B19: 3 | C19: Иванов И.И. | D19: 101732 | H19: 101732 | I19: Минск | J19: 62.81 | L19: 62.81 | M19: 0 | N19: 0 | O19: 0 | P19: 0 | Q19: 0 | R19: Рабочий день
A20: 2026-03-09 | B20: 3 | C20: Иванов И.И. | D20: 101732 | H20: 101732 | I20: Минск - Брест | J20: 62.81 | L20: 62.81 | M20: 0 | N20: 0 | O20: 0 | P20: 0 | Q20: 0 | R20: Рабочий день
A21: 2026-03-10 | B21: 3 | C21: Иванов И.И. | D21: 101732 | H21: 101732 | I21: Брест | J21: 62.81 | L21: 62.81 | M21: 0 | N21: 0 | O21: 0 | P21: 0 | Q21: 0 | R21: Рабочий день
A22: 2026-03-11 | B22: 3 | C22: Иванов И.И. | D22: 101732 | H22: 101732 | I22: Брест-Минск | J22: 62.81 | L22: 62.81 | M22: 0 | N22: 0 | O22: 0 | P22: 0 | Q22: 0 | R22: Рабочий день
A23: 2026-03-12 | B23: 3 | C23: Иванов И.И. | D23: 101732 | H23: 101732 | I23: Минск | J23: 62.81 | L23: 62.81 | M23: 0 | N23: 0 | O23: 0 | P23: 0 | Q23: 0 | R23: Рабочий день
A24: 2026-03-13 | B24: 3 | C24: Иванов И.И. | D24: 101732 | H24: 101732 | I24: Минск | J24: 62.81 | L24: 62.81 | M24: 0 | N24: 0 | O24: 0 | P24: 0 | Q24: 0 | R24: Рабочий день
A25: 2026-03-16 | B25: 3 | C25: Иванов И.И. | D25: 101732 | H25: 101732 | I25: Минск | J25: 62.81 | L25: 62.81 | M25: 0 | N25: 0 | O25: 0 | P25: 0 | Q25: 0 | R25: Рабочий день
A26: 2026-03-17 | B26: 3 | C26: Иванов И.И. | D26: 101732 | H26: 101732 | I26: Минск | J26: 62.81 | L26: 62.81 | M26: 0 | N26: 0 | O26: 0 | P26: 0 | Q26: 0 | R26: Рабочий день
A27: 2026-03-18 | B27: 3 | C27: Иванов И.И. | D27: 101732 | H27: 101732 | I27: Минск | J27: 62.81 | L27: 62.81 | M27: 0 | N27: 0 | O27: 0 | P27: 0 | Q27: 0 | R27: Рабочий день
A28: 2026-03-19 | B28: 3 | C28: Иванов И.И. | D28: 101732 | H28: 101732 | I28: Минск | J28: 62.81 | L28: 62.81 | M28: 0 | N28: 0 | O28: 0 | P28: 0 | Q28: 0 | R28: Рабочий день
A29: 2026-03-20 | B29: 3 | C29: Иванов И.И. | D29: 101732 | H29: 101732 | I29: Минск | J29: 62.81 | L29: 62.81 | M29: 0 | N29: 0 | O29: 0 | P29: 0 | Q29: 0 | R29: Рабочий день
A30: 2026-03-23 | B30: 3 | C30: Иванов И.И. | D30: 101732 | H30: 101732 | I30: Минск | J30: 62.81 | L30: 62.81 | M30: 0 | N30: 0 | O30: 0 | P30: 0 | Q30: 0 | R30: Рабочий день
A31: 2026-03-24 | B31: 3 | C31: Иванов И.И. | D31: 101732 | H31: 101732 | I31: Минск | J31: 62.81 | L31: 62.81 | M31: 0 | N31: 0 | O31: 0 | P31: 0 | Q31: 0 | R31: Рабочий день
A32: 2026-03-25 | B32: 3 | C32: Иванов И.И. | D32: 101732 | H32: 101732 | I32: Минск | J32: 62.81 | L32: 62.81 | M32: 0 | N32: 0 | O32: 0 | P32: 0 | Q32: 0 | R32: Рабочий день
A33: 2026-03-26 | B33: 3 | C33: Иванов И.И. | D33: 101732 | H33: 101732 | I33: Минск | J33: 62.81 | L33: 62.81 | M33: 0 | N33: 0 | O33: 0 | P33: 0 | Q33: 0 | R33: Рабочий день
A34: 2026-03-27 | B34: 3 | C34: Иванов И.И. | D34: 101732 | H34: 101732 | I34: Минск | J34: 62.81 | L34: 62.81 | M34: 0 | N34: 0 | O34: 0 | P34: 0 | Q34: 0 | R34: Рабочий день
A35: 2026-03-30 | B35: 3 | C35: Иванов И.И. | D35: 101732 | H35: 101732 | I35: Минск | J35: 62.81 | L35: 62.81 | M35: 0 | N35: 0 | O35: 0 | P35: 0 | Q35: 0 | R35: Рабочий день
A36: 2026-03-31 | B36: 3 | C36: Иванов И.И. | D36: 101732 | H36: =D36+G36 -> 101732 | I36: Минск | J36: 62.81 | L36: 62.81 | M36: =ROUND($P$5/100*E36,2) -> 0 | N36: =ROUND(IF(I36="Минск",$P$3/100*F36,$P$4/100*F36),2) -> 0 | O36: =M36+N36 -> 0 | P36: =O36 -> 0 | Q36: =P36-O36 -> 0 | R36: Рабочий день
A39: ИТОГО за месяц | E39: =SUM(E15:E38) -> 0 | F39: =SUM(F15:F38) -> 0 | G39: =SUM(G15:G38) -> 0 | K39: =SUM(K15:K38) -> 0 | M39: =SUM(M15:M38) -> 0 | N39: =SUM(N15:N38) -> 0 | O39: =SUM(O15:O38) -> 0 | P39: =SUM(P15:P38) -> 0 | Q39: =SUM(Q15:Q38) -> 0
G40: =E39+F39 -> 0
A41: Составил | K41: Проверил

Sheet 4
A1: ООО "Пример" | N1: линейная норма | P1: 13,2 л | S1: бак | T1: 72 | U1: литра
N3: Минск | P3: 15.3 | Q3: л
N4: город | P4: 13.2 | Q4: л
A5: =WORKDAY(DATE(2026, J6 + 1, 1), -1) -> 2026-04-30 | N5: за городом | P5: 14 | Q5: л
I6: Карточка № | J6: 4
A7: учета расхода бинзина АИ-92 автомобилем
A8: Марка автомобиля Автомобиль | I8: Регистрационный номер 10-01 АА-7
H9: за | I9: =CHOOSE(J6, "январь","февраль","март","апрель","май","июнь","июль","август","сентябрь","октябрь","ноябрь","декабрь") -> апрель | J9: 2026 года
A11: Водитель: | C11: Иванов И.И.
A13: Число месяца | B13: Номер путевого листа | C13: Ф.И.О. водителя | D13: Показание спидометра перед поездкой | E13: Пробег , км за городом | F13: Пробег , км город | G13: Пробег , км Общий | H13: Показание спидометра после поездки | I13: Служебное задание (маршрут следования) | J13: Остаток топлива при выезде, л. | K13: Приобретено топлива на АЗС, л. | L13: Остаток топлива при возврате, л | M13: Расход топлива по норме, л. Трасса | N13: Расход топлива по норме, л. | O13: Расход топлива по норме, л. Общий | P13: Расход топлива фактически, л. | Q13: Результат работы (экономия/перерасход)
A14: 1 | B14: 2 | C14: 3 | D14: 4 | E14: 5 | F14: 6 | G14: 7 | H14: 8 | I14: 9 | J14: 10 | K14: 11 | L14: 12 | M14: 13 | N14: 14 | O14: 15 | P14: 16 | Q14: 17
A15: 2026-04-01 | B15: =$J$6 -> 4 | C15: Иванов И.И. | D15: ='3'!H36 -> 101732 | H15: =D15+G15 -> 101732 | I15: Минск | J15: ='3'!L36 -> 62.81 | L15: =ROUND(J15+K15-O15,2) -> 62.81 | M15: =ROUND($P$5/100*E15,2) -> 0 | N15: =ROUND(IF(I15="Минск",$P$3/100*F15,$P$4/100*F15),2) -> 0 | O15: =M15+N15 -> 0 | P15: =O15 -> 0 | Q15: =P15-O15 -> 0 | R15: =IF(WORKDAY(A15-1, 1)=A15, "Рабочий день", "Выходной") -> Рабочий день
A16: 2026-04-02 | B16: =$J$6 -> 4 | C16: Иванов И.И. | D16: =H15 -> 101732 | H16: 101732 | I16: Минск | J16: =L15 -> 62.81 | L16: =J16+K16-O16 -> 62.81 | M16: =ROUND($P$5/100*E16,2) -> 0 | N16: =ROUND(IF(I16="Минск",$P$3/100*F16,$P$4/100*F16),2) -> 0 | O16: =M16+N16 -> 0 | P16: 0 | Q16: =P16-O16 -> 0 | R16: Рабочий день
A17: 2026-04-03 | B17: =$J$6 -> 4 | C17: Иванов И.И. | D17: 101732 | H17: 101732 | I17: Минск | J17: =L16 -> 62.81 | L17: =J17+K17-O17 -> 62.81 | M17: 0 | N17: 0 | O17: =M17+N17 -> 0 | P17: 0 | Q17: =P17-O17 -> 0 | R17: Рабочий день
A18: 2026-04-06 | B18: 4 | C18: Иванов И.И. | D18: 101732 | H18: 101732 | I18: Минск | J18: 62.81 | L18: 62.81 | M18: 0 | N18: 0 | O18: 0 | P18: 0 | Q18: 0 | R18: Рабочий день
A19: 2026-04-07 | B19: 4 | C19: Иванов И.И. | D19: 101732 | H19: 101732 | I19: Минск | J19: 62.81 | L19: 62.81 | M19: 0 | N19: 0 | O19: 0 | P19: 0 | Q19: 0 | R19: Рабочий день
A20: 2026-04-08 | B20: 4 | C20: Иванов И.И. | D20: 101732 | H20: 101732 | I20: Минск | J20: 62.81 | L20: 62.81 | M20: 0 | N20: 0 | O20: 0 | P20: 0 | Q20: 0 | R20: Рабочий день
A21: 2026-04-09 | B21: 4 | C21: Иванов И.И. | D21: 101732 | H21: 101732 | I21: Минск - Могилёв-Минск | J21: 62.81 | L21: 62.81 | M21: 0 | N21: 0 | O21: 0 | P21: 0 | Q21: 0 | R21: Рабочий день
A22: 2026-04-10 | B22: 4 | C22: Иванов И.И. | D22: 101732 | H22: 101732 | I22: Минск | J22: 62.81 | L22: 62.81 | M22: 0 | N22: 0 | O22: 0 | P22: 0 | Q22: 0 | R22: Рабочий день
A23: 2026-04-13 | B23: 4 | C23: Иванов И.И. | D23: 101732 | H23: 101732 | I23: Минск | J23: 62.81 | L23: 62.81 | M23: 0 | N23: 0 | O23: 0 | P23: 0 | Q23: 0 | R23: Рабочий день
A24: 2026-04-14 | B24: 4 | C24: Иванов И.И. | D24: 101732 | H24: 101732 | I24: Минск | J24: 62.81 | L24: 62.81 | M24: 0 | N24: 0 | O24: 0 | P24: 0 | Q24: 0 | R24: Рабочий день
A25: 2026-04-15 | B25: 4 | C25: Иванов И.И. | D25: 101732 | H25: 101732 | I25: Минск | J25: 62.81 | L25: 62.81 | M25: 0 | N25: 0 | O25: 0 | P25: 0 | Q25: 0 | R25: Рабочий день
A26: 2026-04-16 | B26: 4 | C26: Иванов И.И. | D26: 101732 | H26: 101732 | I26: Минск | J26: 62.81 | L26: 62.81 | M26: 0 | N26: 0 | O26: 0 | P26: 0 | Q26: 0 | R26: Рабочий день
A27: 2026-04-17 | B27: 4 | C27: Иванов И.И. | D27: 101732 | H27: 101732 | I27: Минск | J27: 62.81 | L27: 62.81 | M27: 0 | N27: 0 | O27: 0 | P27: 0 | Q27: 0 | R27: Рабочий день
A28: 2026-04-20 | B28: 4 | C28: Иванов И.И. | D28: 101732 | H28: 101732 | I28: Минск | J28: 62.81 | L28: 62.81 | M28: 0 | N28: 0 | O28: 0 | P28: 0 | Q28: 0 | R28: Рабочий день
A29: 2026-04-22 | B29: 4 | C29: Иванов И.И. | D29: 101732 | H29: 101732 | I29: Минск | J29: 62.81 | L29: 62.81 | M29: 0 | N29: 0 | O29: 0 | P29: 0 | Q29: 0 | R29: Рабочий день
A30: 2026-04-23 | B30: 4 | C30: Иванов И.И. | D30: 101732 | H30: 101732 | I30: Минск | J30: 62.81 | L30: 62.81 | M30: 0 | N30: 0 | O30: 0 | P30: 0 | Q30: 0 | R30: Рабочий день
A31: 2026-04-24 | B31: 4 | C31: Иванов И.И. | D31: 101732 | H31: 101732 | I31: Минск | J31: 62.81 | L31: 62.81 | M31: 0 | N31: 0 | O31: 0 | P31: 0 | Q31: 0 | R31: Рабочий день
A32: 2026-04-27 | B32: 4 | C32: Иванов И.И. | D32: 101732 | H32: 101732 | I32: Минск | J32: 62.81 | L32: 62.81 | M32: =ROUND($P$5/100*E32,2) -> 0 | N32: =ROUND(IF(I32="Минск",$P$3/100*F32,$P$4/100*F32),2) -> 0 | O32: =M32+N32 -> 0 | P32: =O32 -> 0 | Q32: =P32-O32 -> 0 | R32: Рабочий день
A33: 2026-04-28 | B33: 4 | C33: Иванов И.И. | D33: 101732 | H33: 101732 | I33: Минск | J33: 62.81 | L33: 62.81 | M33: 0 | N33: 0 | O33: 0 | P33: 0 | Q33: 0 | R33: Рабочий день
A34: 2026-04-29 | B34: 4 | C34: Иванов И.И. | D34: 101732 | H34: 101732 | I34: Минск | J34: 62.81 | L34: 62.81 | M34: 0 | N34: 0 | O34: 0 | P34: 0 | Q34: 0 | R34: Рабочий день
A35: 2026-04-30 | B35: 4 | C35: Иванов И.И. | D35: 101732 | H35: 101732 | I35: Минск | J35: 62.81 | L35: 62.81 | M35: 0 | N35: 0 | O35: 0 | P35: 0 | Q35: 0 | R35: Рабочий день
A39: ИТОГО за месяц | E39: =SUM(E15:E38) -> 0 | F39: =SUM(F15:F38) -> 0 | G39: =SUM(G15:G38) -> 0 | K39: =SUM(K15:K38) -> 0 | M39: =SUM(M15:M38) -> 0 | N39: =SUM(N15:N38) -> 0 | O39: =SUM(O15:O38) -> 0 | P39: =SUM(P15:P38) -> 0 | Q39: =SUM(Q15:Q38) -> 0
G40: =E39+F39 -> 0
A41: Составил | J41: Проверил

Sheet 5
A1: ООО "Пример" | N1: линейная норма | P1: 13,2 л | S1: бак | T1: 72 | U1: литра
N3: Минск | P3: 15.3 | Q3: л
N4: город | P4: 13.2 | Q4: л
A5: =WORKDAY(DATE(2026, J6 + 1, 1), -1) -> 2026-05-29 | N5: за городом | P5: 14 | Q5: л
I6: Карточка № | J6: 5
A7: учета расхода бинзина АИ-92 автомобилем
A8: Марка автомобиля Автомобиль | I8: Регистрационный номер 10-01 АА-7
H9: за | I9: =CHOOSE(J6, "январь","февраль","март","апрель","май","июнь","июль","август","сентябрь","октябрь","ноябрь","декабрь") -> май | J9: 2026 года
A11: Водитель: | C11: Иванов И.И.
A13: Число месяца | B13: Номер путевого листа | C13: Ф.И.О. водителя | D13: Показание спидометра перед поездкой | E13: Пробег , км за городом | F13: Пробег , км город | G13: Пробег , км Общий | H13: Показание спидометра после поездки | I13: Служебное задание (маршрут следования) | J13: Остаток топлива при выезде, л. | K13: Приобретено топлива на АЗС, л. | L13: Остаток топлива при возврате, л | M13: Расход топлива по норме, л. Трасса | N13: Расход топлива по норме, л. | O13: Расход топлива по норме, л. Общий | P13: Расход топлива фактически, л. | Q13: Результат работы (экономия/перерасход)
A14: 1 | B14: 2 | C14: 3 | D14: 4 | E14: 5 | F14: 6 | G14: 7 | H14: 8 | I14: 9 | J14: 10 | K14: 11 | L14: 12 | M14: 13 | N14: 14 | O14: 15 | P14: 16 | Q14: 17
A15: 2026-05-04 | B15: =$J$6 -> 5 | C15: Иванов И.И. | D15: ='4'!H35 -> 101732 | H15: =D15+G15 -> 101732 | I15: Минск | J15: ='4'!L35 -> 62.81 | L15: =ROUND(J15+K15-O15,2) -> 62.81 | M15: =ROUND($P$5/100*E15,2) -> 0 | N15: =ROUND(IF(I15="Минск",$P$3/100*F15,$P$4/100*F15),2) -> 0 | O15: =M15+N15 -> 0 | P15: =O15 -> 0 | Q15: =P15-O15 -> 0 | R15: =IF(WORKDAY(A15-1, 1)=A15, "Рабочий день", "Выходной") -> Рабочий день
A16: 2026-05-05 | B16: =$J$6 -> 5 | C16: Иванов И.И. | D16: =H15 -> 101732 | H16: 101732 | I16: Минск | J16: =L15 -> 62.81 | L16: =ROUND(J16+K16-O16,2) -> 62.81 | M16: =ROUND($P$5/100*E16,2) -> 0 | N16: =ROUND(IF(I16="Минск",$P$3/100*F16,$P$4/100*F16),2) -> 0 | O16: =M16+N16 -> 0 | P16: 0 | Q16: =P16-O16 -> 0 | R16: Рабочий день
A17: 2026-05-06 | B17: =$J$6 -> 5 | C17: Иванов И.И. | D17: 101732 | H17: 101732 | I17: Минск | J17: =L16 -> 62.81 | L17: 62.81 | M17: 0 | N17: 0 | O17: =M17+N17 -> 0 | P17: 0 | Q17: =P17-O17 -> 0 | R17: Рабочий день
A18: 2026-05-07 | B18: 5 | C18: Иванов И.И. | D18: 101732 | H18: 101732 | I18: Минск | J18: 62.81 | L18: 62.81 | M18: 0 | N18: 0 | O18: 0 | P18: 0 | Q18: 0 | R18: Рабочий день
A19: 2026-05-08 | B19: 5 | C19: Иванов И.И. | D19: 101732 | H19: 101732 | I19: Минск | J19: 62.81 | L19: 62.81 | M19: 0 | N19: 0 | O19: 0 | P19: 0 | Q19: 0 | R19: Рабочий день
A20: 2026-05-11 | B20: 5 | C20: Иванов И.И. | D20: 101732 | H20: 101732 | I20: Минск | J20: 62.81 | L20: 62.81 | M20: 0 | N20: 0 | O20: 0 | P20: 0 | Q20: 0 | R20: Рабочий день
A21: 2026-05-12 | B21: 5 | C21: Иванов И.И. | D21: 101732 | H21: 101732 | I21: Минск | J21: 62.81 | L21: 62.81 | M21: 0 | N21: 0 | O21: 0 | P21: 0 | Q21: 0 | R21: Рабочий день
A22: 2026-05-13 | B22: 5 | C22: Иванов И.И. | D22: 101732 | H22: 101732 | I22: Минск | J22: 62.81 | L22: 62.81 | M22: 0 | N22: 0 | O22: 0 | P22: 0 | Q22: 0 | R22: Рабочий день
A23: 2026-05-14 | B23: 5 | C23: Иванов И.И. | D23: 101732 | H23: 101732 | I23: Минск | J23: 62.81 | L23: 62.81 | M23: 0 | N23: 0 | O23: 0 | P23: 0 | Q23: 0 | R23: Рабочий день
A24: 2026-05-15 | B24: 5 | C24: Иванов И.И. | D24: 101732 | H24: 101732 | I24: Минск | J24: 62.81 | L24: 62.81 | M24: 0 | N24: 0 | O24: 0 | P24: 0 | Q24: 0 | R24: Рабочий день
A25: 2026-05-18 | B25: 5 | C25: Иванов И.И. | D25: 101732 | H25: 101732 | I25: Минск | J25: 62.81 | L25: 62.81 | M25: 0 | N25: 0 | O25: 0 | P25: 0 | Q25: 0 | R25: Рабочий день
A26: 2026-05-19 | B26: 5 | C26: Иванов И.И. | D26: 101732 | H26: 101732 | I26: Минск | J26: 62.81 | L26: 62.81 | M26: 0 | N26: 0 | O26: 0 | P26: 0 | Q26: 0 | R26: Рабочий день
A27: 2026-05-20 | B27: 5 | C27: Иванов И.И. | D27: 101732 | H27: 101732 | I27: Минск | J27: 62.81 | L27: 62.81 | M27: 0 | N27: 0 | O27: 0 | P27: 0 | Q27: 0 | R27: Рабочий день
A28: 2026-05-21 | B28: 5 | C28: Иванов И.И. | D28: 101732 | H28: 101732 | I28: Минск | J28: 62.81 | L28: 62.81 | M28: 0 | N28: 0 | O28: 0 | P28: 0 | Q28: 0 | R28: Рабочий день
A29: 2026-05-22 | B29: 5 | C29: Иванов И.И. | D29: 101732 | H29: 101732 | I29: Минск | J29: 62.81 | L29: 62.81 | M29: 0 | N29: 0 | O29: 0 | P29: 0 | Q29: 0 | R29: Рабочий день
A30: 2026-05-25 | B30: 5 | C30: Иванов И.И. | D30: 101732 | H30: 101732 | I30: Минск | J30: 62.81 | L30: 62.81 | M30: 0 | N30: 0 | O30: 0 | P30: 0 | Q30: 0 | R30: Рабочий день
A31: 2026-05-26 | B31: 5 | C31: Иванов И.И. | D31: 101732 | H31: 101732 | I31: Минск | J31: 62.81 | L31: 62.81 | M31: 0 | N31: 0 | O31: 0 | P31: 0 | Q31: 0 | R31: Рабочий день
A32: 2026-05-27 | B32: 5 | C32: Иванов И.И. | D32: 101732 | H32: 101732 | I32: Минск | J32: 62.81 | L32: 62.81 | M32: 0 | N32: 0 | O32: 0 | P32: 0 | Q32: 0 | R32: Рабочий день
A33: 2026-05-28 | B33: 5 | C33: Иванов И.И. | D33: 101732 | H33: 101732 | I33: Минск | J33: 62.81 | L33: 62.81 | M33: 0 | N33: 0 | O33: 0 | P33: 0 | Q33: 0 | R33: Рабочий день
A34: 2026-05-29 | B34: 5 | C34: Иванов И.И. | D34: 101732 | H34: 101732 | I34: Минск | J34: 62.81 | L34: 62.81 | M34: 0 | N34: 0 | O34: 0 | P34: 0 | Q34: 0 | R34: Рабочий день
A39: ИТОГО за месяц | E39: =SUM(E15:E38) -> 0 | F39: =SUM(F15:F38) -> 0 | G39: =SUM(G15:G38) -> 0 | K39: =SUM(K15:K38) -> 0 | M39: =SUM(M15:M38) -> 0 | N39: =SUM(N15:N38) -> 0 | O39: =SUM(O15:O38) -> 0 | P39: =SUM(P15:P38) -> 0 | Q39: =SUM(Q15:Q38) -> 0
G40: =E39+F39 -> 0
A41: Составил | J41: Проверил

Sheet 6
A1: ООО "Пример" | N1: линейная норма | P1: 13,2 л | S1: бак | T1: 72 | U1: литра
N3: Минск | P3: 15.3 | Q3: л
N4: город | P4: 13.2 | Q4: л
A5: =WORKDAY(DATE(2026, J6 + 1, 1), -1) -> 2026-06-30 | N5: за городом | P5: 14 | Q5: л
I6: Карточка № | J6: 6
A7: учета расхода бинзина АИ-92 автомобилем
A8: Марка автомобиля Автомобиль | I8: Регистрационный номер 10-01 АА-7
H9: за | I9: =CHOOSE(J6, "январь","февраль","март","апрель","май","июнь","июль","август","сентябрь","октябрь","ноябрь","декабрь") -> июнь | J9: 2026 года
A11: Водитель: | C11: Иванов И.И.
A13: Число месяца | B13: Номер путевого листа | C13: Ф.И.О. водителя | D13: Показание спидометра перед поездкой | E13: Пробег , км за городом | F13: Пробег , км город | G13: Пробег , км Общий | H13: Показание спидометра после поездки | I13: Служебное задание (маршрут следования) | J13: Остаток топлива при выезде, л. | K13: Приобретено топлива на АЗС, л. | L13: Остаток топлива при возврате, л | M13: Расход топлива по норме, л. Трасса | N13: Расход топлива по норме, л. | O13: Расход топлива по норме, л. Общий | P13: Расход топлива фактически, л. | Q13: Результат работы (экономия/перерасход)
A14: 1 | B14: 2 | C14: 3 | D14: 4 | E14: 5 | F14: 6 | G14: 7 | H14: 8 | I14: 9 | J14: 10 | K14: 11 | L14: 12 | M14: 13 | N14: 14 | O14: 15 | P14: 16 | Q14: 17
A15: 2026-06-01 | B15: =$J$6 -> 6 | C15: Иванов И.И. | D15: ='5'!H34 -> 101732 | G15: =E15+F15 -> 0 | H15: =D15+G15 -> 101732 | I15: Минск | J15: ='5'!L34 -> 62.81 | L15: =ROUND(J15+K15-O15,2) -> 62.81 | M15: =ROUND($P$5/100*E15,2) -> 0 | N15: =ROUND(IF(I15="Минск",$P$3/100*F15,$P$4/100*F15),2) -> 0 | O15: =M15+N15 -> 0 | P15: =O15 -> 0 | Q15: =P15-O15 -> 0 | R15: =IF(WORKDAY(A15-1, 1)=A15, "Рабочий день", "Выходной") -> Рабочий день
A16: 2026-06-02 | B16: =$J$6 -> 6 | C16: Иванов И.И. | D16: =H15 -> 101732 | G16: =E16+F16 -> 0 | H16: 101732 | I16: Минск | J16: =L15 -> 62.81 | L16: =ROUND(J16+K16-O16,2) -> 62.81 | M16: =ROUND($P$5/100*E16,2) -> 0 | N16: =ROUND(IF(I16="Минск",$P$3/100*F16,$P$4/100*F16),2) -> 0 | O16: =M16+N16 -> 0 | P16: 0 | Q16: =P16-O16 -> 0 | R16: Рабочий день
A17: 2026-06-03 | B17: =$J$6 -> 6 | C17: Иванов И.И. | D17: 101732 | G17: 0 | H17: 101732 | I17: Минск | J17: =L16 -> 62.81 | L17: 62.81 | M17: 0 | N17: 0 | O17: =M17+N17 -> 0 | P17: 0 | Q17: =P17-O17 -> 0 | R17: Рабочий день
A18: 2026-06-04 | B18: 6 | C18: Иванов И.И. | D18: 101732 | G18: 0 | H18: 101732 | I18: Минск | J18: 62.81 | L18: 62.81 | M18: 0 | N18: 0 | O18: 0 | P18: 0 | Q18: 0 | R18: Рабочий день
A19: 2026-06-05 | B19: 6 | C19: Иванов И.И. | D19: 101732 | G19: 0 | H19: 101732 | I19: Минск | J19: 62.81 | L19: 62.81 | M19: 0 | N19: 0 | O19: 0 | P19: 0 | Q19: 0 | R19: Рабочий день
A20: 2026-06-08 | B20: 6 | C20: Иванов И.И. | D20: 101732 | G20: 0 | H20: 101732 | I20: Минск | J20: 62.81 | L20: 62.81 | M20: 0 | N20: 0 | O20: 0 | P20: 0 | Q20: 0 | R20: Рабочий день
A21: 2026-06-09 | B21: 6 | C21: Иванов И.И. | D21: 101732 | G21: =E21+F21 -> 0 | H21: 101732 | I21: Минск | J21: 62.81 | L21: =ROUND(J21+K21-O21,2) -> 62.81 | M21: =ROUND($P$5/100*E21,2) -> 0 | N21: =ROUND(IF(I21="Минск",$P$3/100*F21,$P$4/100*F21),2) -> 0 | O21: =M21+N21 -> 0 | P21: =O21 -> 0 | Q21: =P21-O21 -> 0 | R21: Рабочий день
A22: 2026-06-10 | B22: 6 | C22: Иванов И.И. | D22: 101732 | G22: 0 | H22: 101732 | I22: Минск | J22: 62.81 | L22: 62.81 | M22: 0 | N22: 0 | O22: 0 | P22: 0 | Q22: 0 | R22: Рабочий день
A23: 2026-06-11 | B23: 6 | C23: Иванов И.И. | D23: 101732 | G23: 0 | H23: 101732 | I23: Минск | J23: 62.81 | L23: 62.81 | M23: 0 | N23: 0 | O23: 0 | P23: 0 | Q23: 0 | R23: Рабочий день
A24: 2026-06-12 | B24: 6 | C24: Иванов И.И. | D24: 101732 | G24: 0 | H24: 101732 | I24: Минск | J24: 62.81 | L24: 62.81 | M24: 0 | N24: 0 | O24: 0 | P24: 0 | Q24: 0 | R24: Рабочий день
A25: 2026-06-15 | B25: 6 | C25: Иванов И.И. | D25: 101732 | G25: 0 | H25: 101732 | I25: Минск | J25: 62.81 | L25: 62.81 | M25: 0 | N25: 0 | O25: 0 | P25: 0 | Q25: 0 | R25: Рабочий день
A26: 2026-06-16 | B26: 6 | C26: Иванов И.И. | D26: 101732 | G26: 0 | H26: 101732 | I26: Минск | J26: 62.81 | L26: 62.81 | M26: 0 | N26: 0 | O26: 0 | P26: 0 | Q26: 0 | R26: Рабочий день
A27: 2026-06-17 | B27: 6 | C27: Иванов И.И. | D27: 101732 | G27: 0 | H27: 101732 | I27: Минск | J27: 62.81 | L27: 62.81 | M27: 0 | N27: 0 | O27: 0 | P27: 0 | Q27: 0 | R27: Рабочий день
A28: 2026-06-18 | B28: 6 | C28: Иванов И.И. | D28: 101732 | G28: 0 | H28: 101732 | I28: Минск | J28: 62.81 | L28: 62.81 | M28: 0 | N28: 0 | O28: 0 | P28: 0 | Q28: 0 | R28: Рабочий день
A29: 2026-06-19 | B29: 6 | C29: Иванов И.И. | D29: 101732 | G29: 0 | H29: 101732 | I29: Минск | J29: 62.81 | L29: 62.81 | M29: 0 | N29: 0 | O29: 0 | P29: 0 | Q29: 0 | R29: Рабочий день
A30: 2026-06-22 | B30: 6 | C30: Иванов И.И. | D30: 101732 | G30: 0 | H30: 101732 | I30: Минск | J30: 62.81 | L30: 62.81 | M30: 0 | N30: 0 | O30: 0 | P30: 0 | Q30: 0 | R30: Рабочий день
A31: 2026-06-23 | B31: 6 | C31: Иванов И.И. | D31: 101732 | G31: 0 | H31: 101732 | I31: Минск | J31: 62.81 | L31: 62.81 | M31: 0 | N31: 0 | O31: 0 | P31: 0 | Q31: 0 | R31: Рабочий день
A32: 2026-06-24 | B32: 6 | C32: Иванов И.И. | D32: 101732 | G32: 0 | H32: 101732 | I32: Минск | J32: 62.81 | L32: 62.81 | M32: 0 | N32: 0 | O32: 0 | P32: 0 | Q32: 0 | R32: Рабочий день
A33: 2026-06-25 | B33: 6 | C33: Иванов И.И. | D33: 101732 | G33: 0 | H33: 101732 | I33: Минск | J33: 62.81 | L33: 62.81 | M33: 0 | N33: 0 | O33: 0 | P33: 0 | Q33: 0 | R33: Рабочий день
A34: 2026-06-26 | B34: 6 | C34: Иванов И.И. | D34: 101732 | G34: 0 | H34: 101732 | I34: Минск | J34: 62.81 | L34: 62.81 | M34: 0 | N34: 0 | O34: 0 | P34: 0 | Q34: 0 | R34: Рабочий день
A35: 2026-06-29 | B35: 6 | C35: Иванов И.И. | D35: 101732 | G35: 0 | H35: 101732 | I35: Минск | J35: 62.81 | L35: 62.81 | M35: 0 | N35: 0 | O35: 0 | P35: 0 | Q35: 0 | R35: Рабочий день
A36: 2026-06-30 | B36: 6 | C36: Иванов И.И. | D36: 101732 | G36: 0 | H36: 101732 | I36: Минск | J36: 62.81 | L36: 62.81 | M36: 0 | N36: 0 | O36: 0 | P36: 0 | Q36: 0 | R36: Рабочий день
A39: ИТОГО за месяц | E39: =SUM(E15:E38) -> 0 | F39: =SUM(F15:F38) -> 0 | G39: =SUM(G15:G38) -> 0 | K39: =SUM(K15:K38) -> 0 | M39: =SUM(M15:M38) -> 0 | N39: =SUM(N15:N38) -> 0 | O39: =SUM(O15:O38) -> 0 | P39: =SUM(P15:P38) -> 0 | Q39: =SUM(Q15:Q38) -> 0
G40: =E39+F39 -> 0
A41: Составил | J41: Проверил
L44: =J15+K39-O39 -> 62.81

Sheet 7
A1: ООО "Пример" | N1: линейная норма | P1: 13,2 л | S1: бак | T1: 72 | U1: литра
N3: Минск | P3: 15.3 | Q3: л
N4: город | P4: 13.2 | Q4: л
A5: =WORKDAY(DATE(2026, J6 + 1, 1), -1) -> 2026-07-31 | N5: за городом | P5: 14 | Q5: л
I6: Карточка № | J6: 7
A7: учета расхода бинзина АИ-92 автомобилем
A8: Марка автомобиля Автомобиль | I8: Регистрационный номер 10-01 АА-7
H9: за | I9: =CHOOSE(J6, "январь","февраль","март","апрель","май","июнь","июль","август","сентябрь","октябрь","ноябрь","декабрь") -> июль | J9: 2026 года
A11: Водитель: | C11: Иванов И.И.
A13: Число месяца | B13: Номер путевого листа | C13: Ф.И.О. водителя | D13: Показание спидометра перед поездкой | E13: Пробег , км за городом | F13: Пробег , км город | G13: Пробег , км Общий | H13: Показание спидометра после поездки | I13: Служебное задание (маршрут следования) | J13: Остаток топлива при выезде, л. | K13: Приобретено топлива на АЗС, л. | L13: Остаток топлива при возврате, л | M13: Расход топлива по норме, л. Трасса | N13: Расход топлива по норме, л. | O13: Расход топлива по норме, л. Общий | P13: Расход топлива фактически, л. | Q13: Результат работы (экономия/перерасход)
A14: 1 | B14: 2 | C14: 3 | D14: 4 | E14: 5 | F14: 6 | G14: 7 | H14: 8 | I14: 9 | J14: 10 | K14: 11 | L14: 12 | M14: 13 | N14: 14 | O14: 15 | P14: 16 | Q14: 17
A15: 2026-07-01 | B15: =$J$6 -> 7 | C15: Иванов И.И. | D15: ='6'!H36 -> 101732 | G15: =E15+F15 -> 0 | H15: =D15+G15 -> 101732 | I15: Минск | J15: ='6'!L36 -> 62.81 | L15: =ROUND(J15+K15-O15,2) -> 62.81 | M15: =ROUND($P$5/100*E15,2) -> 0 | N15: =ROUND(IF(I15="Минск",$P$3/100*F15,$P$4/100*F15),2) -> 0 | O15: =M15+N15 -> 0 | P15: =O15 -> 0 | Q15: =P15-O15 -> 0 | R15: =IF(WORKDAY(A15-1, 1)=A15, "Рабочий день", "Выходной") -> Рабочий день
A16: 2026-07-02 | B16: =$J$6 -> 7 | C16: Иванов И.И. | D16: =H15 -> 101732 | G16: =E16+F16 -> 0 | H16: 101732 | I16: Минск | J16: =L15 -> 62.81 | L16: =ROUND(J16+K16-O16,2) -> 62.81 | M16: =ROUND($P$5/100*E16,2) -> 0 | N16: =ROUND(IF(I16="Минск",$P$3/100*F16,$P$4/100*F16),2) -> 0 | O16: =M16+N16 -> 0 | P16: 0 | Q16: =P16-O16 -> 0 | R16: Рабочий день
A17: 2026-07-03 | B17: =$J$6 -> 7 | C17: Иванов И.И. | D17: 101732 | G17: 0 | H17: 101732 | I17: Минск | J17: =L16 -> 62.81 | L17: 62.81 | M17: 0 | N17: 0 | O17: =M17+N17 -> 0 | P17: 0 | Q17: =P17-O17 -> 0 | R17: Рабочий день
A18: 2026-07-06 | B18: 7 | C18: Иванов И.И. | D18: 101732 | G18: 0 | H18: 101732 | I18: Минск | J18: 62.81 | L18: 62.81 | M18: 0 | N18: 0 | O18: 0 | P18: 0 | Q18: 0 | R18: Рабочий день
A19: 2026-07-07 | B19: 7 | C19: Иванов И.И. | D19: 101732 | G19: 0 | H19: 101732 | I19: Минск | J19: 62.81 | L19: 62.81 | M19: 0 | N19: 0 | O19: 0 | P19: 0 | Q19: 0 | R19: Рабочий день
A20: 2026-07-08 | B20: 7 | C20: Иванов И.И. | D20: 101732 | G20: 0 | H20: 101732 | I20: Минск | J20: 62.81 | L20: 62.81 | M20: 0 | N20: 0 | O20: 0 | P20: 0 | Q20: 0 | R20: Рабочий день
A21: 2026-07-09 | B21: 7 | C21: Иванов И.И. | D21: 101732 | G21: 0 | H21: 101732 | I21: Минск | J21: 62.81 | L21: 62.81 | M21: 0 | N21: 0 | O21: 0 | P21: 0 | Q21: 0 | R21: Рабочий день
A22: 2026-07-10 | B22: 7 | C22: Иванов И.И. | D22: 101732 | G22: 0 | H22: 101732 | I22: Минск | J22: 62.81 | L22: 62.81 | M22: 0 | N22: 0 | O22: 0 | P22: 0 | Q22: 0 | R22: Рабочий день
A23: 2026-07-13 | B23: 7 | C23: Иванов И.И. | D23: 101732 | G23: 0 | H23: 101732 | I23: Минск | J23: 62.81 | L23: 62.81 | M23: 0 | N23: 0 | O23: 0 | P23: 0 | Q23: 0 | R23: Рабочий день
A24: 2026-07-14 | B24: 7 | C24: Иванов И.И. | D24: 101732 | G24: 0 | H24: 101732 | I24: Минск | J24: 62.81 | L24: 62.81 | M24: 0 | N24: 0 | O24: 0 | P24: 0 | Q24: 0 | R24: Рабочий день
A25: 2026-07-15 | B25: 7 | C25: Иванов И.И. | D25: 101732 | G25: 0 | H25: 101732 | I25: Минск | J25: 62.81 | L25: 62.81 | M25: 0 | N25: 0 | O25: 0 | P25: 0 | Q25: 0 | R25: Рабочий день
A26: 2026-07-16 | B26: 7 | C26: Иванов И.И. | D26: 101732 | G26: 0 | H26: 101732 | I26: Минск | J26: 62.81 | L26: 62.81 | M26: 0 | N26: 0 | O26: 0 | P26: 0 | Q26: 0 | R26: Рабочий день
A27: 2026-07-17 | B27: 7 | C27: Иванов И.И. | D27: 101732 | G27: 0 | H27: 101732 | I27: Минск | J27: 62.81 | L27: 62.81 | M27: 0 | N27: 0 | O27: 0 | P27: 0 | Q27: 0 | R27: Рабочий день
A28: 2026-07-20 | B28: 7 | C28: Иванов И.И. | D28: 101732 | G28: 0 | H28: 101732 | I28: Минск | J28: 62.81 | L28: 62.81 | M28: 0 | N28: 0 | O28: 0 | P28: 0 | Q28: 0 | R28: Рабочий день
A29: 2026-07-21 | B29: 7 | C29: Иванов И.И. | D29: 101732 | G29: 0 | H29: 101732 | I29: Минск | J29: 62.81 | L29: 62.81 | M29: 0 | N29: 0 | O29: 0 | P29: 0 | Q29: 0 | R29: Рабочий день
A30: 2026-07-22 | B30: 7 | C30: Иванов И.И. | D30: 101732 | G30: 0 | H30: 101732 | I30: Минск | J30: 62.81 | L30: 62.81 | M30: 0 | N30: 0 | O30: 0 | P30: 0 | Q30: 0 | R30: Рабочий день
A31: 2026-07-23 | B31: 7 | C31: Иванов И.И. | D31: 101732 | G31: 0 | H31: 101732 | I31: Минск | J31: 62.81 | L31: 62.81 | M31: 0 | N31: 0 | O31: 0 | P31: 0 | Q31: 0 | R31: Рабочий день
A32: 2026-07-24 | B32: 7 | C32: Иванов И.И. | D32: 101732 | G32: 0 | H32: 101732 | I32: Минск | J32: 62.81 | L32: 62.81 | M32: 0 | N32: 0 | O32: 0 | P32: 0 | Q32: 0 | R32: Рабочий день
A33: 2026-07-27 | B33: 7 | C33: Иванов И.И. | D33: 101732 | G33: 0 | H33: 101732 | I33: Минск | J33: 62.81 | L33: 62.81 | M33: 0 | N33: 0 | O33: 0 | P33: 0 | Q33: 0 | R33: Рабочий день
A34: 2026-07-28 | B34: 7 | C34: Иванов И.И. | D34: 101732 | G34: 0 | H34: 101732 | I34: Минск | J34: 62.81 | L34: 62.81 | M34: 0 | N34: 0 | O34: 0 | P34: 0 | Q34: 0 | R34: Рабочий день
A35: 2026-07-29 | B35: 7 | C35: Иванов И.И. | D35: 101732 | G35: 0 | H35: 101732 | I35: Минск | J35: 62.81 | L35: 62.81 | M35: 0 | N35: 0 | O35: 0 | P35: 0 | Q35: 0 | R35: Рабочий день
A36: 2026-07-30 | B36: 7 | C36: Иванов И.И. | D36: 101732 | G36: 0 | H36: 101732 | I36: Минск | J36: 62.81 | L36: 62.81 | M36: 0 | N36: 0 | O36: 0 | P36: 0 | Q36: 0 | R36: Рабочий день
A37: 2026-07-31 | B37: 7 | C37: Иванов И.И. | D37: 101732 | G37: 0 | H37: 101732 | I37: Минск | J37: 62.81 | L37: 62.81 | M37: 0 | N37: 0 | O37: 0 | P37: 0 | Q37: 0 | R37: Рабочий день
A39: ИТОГО за месяц | E39: =SUM(E15:E38) -> 0 | F39: =SUM(F15:F38) -> 0 | G39: =SUM(G15:G38) -> 0 | K39: =SUM(K15:K38) -> 0 | M39: =SUM(M15:M38) -> 0 | N39: =SUM(N15:N38) -> 0 | O39: =SUM(O15:O38) -> 0 | P39: =SUM(P15:P38) -> 0 | Q39: =SUM(Q15:Q38) -> 0
G40: =E39+F39 -> 0
A41: Составил | J41: Проверил

Sheet 8
A1: ООО "Пример" | N1: линейная норма | P1: 13,2 л | S1: бак | T1: 72 | U1: литра
N3: Минск | P3: 15.3 | Q3: л
N4: город | P4: 13.2 | Q4: л
A5: =WORKDAY(DATE(2026, J6 + 1, 1), -1) -> 2026-08-31 | N5: за городом | P5: 14 | Q5: л
I6: Карточка № | J6: 8
A7: учета расхода бинзина АИ-92 автомобилем
A8: Марка автомобиля Автомобиль | I8: Регистрационный номер 10-01 АА-7
H9: за | I9: =CHOOSE(J6, "январь","февраль","март","апрель","май","июнь","июль","август","сентябрь","октябрь","ноябрь","декабрь") -> август | J9: 2026 года
A11: Водитель: | C11: Иванов И.И.
A13: Число месяца | B13: Номер путевого листа | C13: Ф.И.О. водителя | D13: Показание спидометра перед поездкой | E13: Пробег , км за городом | F13: Пробег , км город | G13: Пробег , км Общий | H13: Показание спидометра после поездки | I13: Служебное задание (маршрут следования) | J13: Остаток топлива при выезде, л. | K13: Приобретено топлива на АЗС, л. | L13: Остаток топлива при возврате, л | M13: Расход топлива по норме, л. Трасса | N13: Расход топлива по норме, л. | O13: Расход топлива по норме, л. Общий | P13: Расход топлива фактически, л. | Q13: Результат работы (экономия/перерасход)
A14: 1 | B14: 2 | C14: 3 | D14: 4 | E14: 5 | F14: 6 | G14: 7 | H14: 8 | I14: 9 | J14: 10 | K14: 11 | L14: 12 | M14: 13 | N14: 14 | O14: 15 | P14: 16 | Q14: 17
A15: 2026-08-03 | B15: =$J$6 -> 8 | C15: Иванов И.И. | D15: ='7'!H37 -> 101732 | G15: =E15+F15 -> 0 | H15: =D15+G15 -> 101732 | I15: Минск | J15: ='7'!L37 -> 62.81 | L15: =ROUND(J15+K15-O15,2) -> 62.81 | M15: =ROUND($P$5/100*E15,2) -> 0 | N15: =ROUND(IF(I15="Минск",$P$3/100*F15,$P$4/100*F15),2) -> 0 | O15: =M15+N15 -> 0 | P15: =O15 -> 0 | Q15: =P15-O15 -> 0 | R15: =IF(WORKDAY(A15-1, 1)=A15, "Рабочий день", "Выходной") -> Рабочий день
A16: 2026-08-04 | B16: =$J$6 -> 8 | C16: Иванов И.И. | D16: =H15 -> 101732 | G16: =E16+F16 -> 0 | H16: 101732 | I16: Минск | J16: =L15 -> 62.81 | L16: =ROUND(J16+K16-O16,2) -> 62.81 | M16: =ROUND($P$5/100*E16,2) -> 0 | N16: =ROUND(IF(I16="Минск",$P$3/100*F16,$P$4/100*F16),2) -> 0 | O16: =M16+N16 -> 0 | P16: 0 | Q16: =P16-O16 -> 0 | R16: Рабочий день
A17: 2026-08-05 | B17: =$J$6 -> 8 | C17: Иванов И.И. | D17: 101732 | G17: 0 | H17: 101732 | I17: Минск | J17: =L16 -> 62.81 | L17: 62.81 | M17: 0 | N17: 0 | O17: =M17+N17 -> 0 | P17: 0 | Q17: =P17-O17 -> 0 | R17: Рабочий день
A18: 2026-08-06 | B18: 8 | C18: Иванов И.И. | D18: 101732 | G18: 0 | H18: 101732 | I18: Минск | J18: 62.81 | L18: 62.81 | M18: 0 | N18: 0 | O18: 0 | P18: 0 | Q18: 0 | R18: Рабочий день
A19: 2026-08-07 | B19: 8 | C19: Иванов И.И. | D19: 101732 | G19: 0 | H19: 101732 | I19: Минск | J19: 62.81 | L19: 62.81 | M19: 0 | N19: 0 | O19: 0 | P19: 0 | Q19: 0 | R19: Рабочий день
A20: 2026-08-10 | B20: 8 | C20: Иванов И.И. | D20: 101732 | G20: 0 | H20: 101732 | I20: Минск | J20: 62.81 | L20: 62.81 | M20: 0 | N20: 0 | O20: 0 | P20: 0 | Q20: 0 | R20: Рабочий день
A21: 2026-08-11 | B21: 8 | C21: Иванов И.И. | D21: 101732 | G21: 0 | H21: 101732 | I21: Минск | J21: 62.81 | L21: 62.81 | M21: 0 | N21: 0 | O21: 0 | P21: 0 | Q21: 0 | R21: Рабочий день
A22: 2026-08-12 | B22: 8 | C22: Иванов И.И. | D22: 101732 | G22: 0 | H22: 101732 | I22: Минск | J22: 62.81 | L22: 62.81 | M22: 0 | N22: 0 | O22: 0 | P22: 0 | Q22: 0 | R22: Рабочий день
A23: 2026-08-13 | B23: 8 | C23: Иванов И.И. | D23: 101732 | G23: 0 | H23: 101732 | I23: Минск | J23: 62.81 | L23: 62.81 | M23: 0 | N23: 0 | O23: 0 | P23: 0 | Q23: 0 | R23: Рабочий день
A24: 2026-08-14 | B24: 8 | C24: Иванов И.И. | D24: 101732 | G24: 0 | H24: 101732 | I24: Минск | J24: 62.81 | L24: 62.81 | M24: 0 | N24: 0 | O24: 0 | P24: 0 | Q24: 0 | R24: Рабочий день
A25: 2026-08-17 | B25: 8 | C25: Иванов И.И. | D25: 101732 | G25: 0 | H25: 101732 | I25: Минск | J25: 62.81 | L25: 62.81 | M25: 0 | N25: 0 | O25: 0 | P25: 0 | Q25: 0 | R25: Рабочий день
A26: 2026-08-18 | B26: 8 | C26: Иванов И.И. | D26: 101732 | G26: 0 | H26: 101732 | I26: Минск | J26: 62.81 | L26: 62.81 | M26: 0 | N26: 0 | O26: 0 | P26: 0 | Q26: 0 | R26: Рабочий день
A27: 2026-08-19 | B27: 8 | C27: Иванов И.И. | D27: 101732 | G27: 0 | H27: 101732 | I27: Минск | J27: 62.81 | L27: 62.81 | M27: 0 | N27: 0 | O27: 0 | P27: 0 | Q27: 0 | R27: Рабочий день
A28: 2026-08-20 | B28: 8 | C28: Иванов И.И. | D28: 101732 | G28: 0 | H28: 101732 | I28: Минск | J28: 62.81 | L28: 62.81 | M28: 0 | N28: 0 | O28: 0 | P28: 0 | Q28: 0 | R28: Рабочий день
A29: 2026-08-21 | B29: 8 | C29: Иванов И.И. | D29: 101732 | G29: 0 | H29: 101732 | I29: Минск | J29: 62.81 | L29: 62.81 | M29: 0 | N29: 0 | O29: 0 | P29: 0 | Q29: 0 | R29: Рабочий день
A30: 2026-08-24 | B30: 8 | C30: Иванов И.И. | D30: 101732 | G30: 0 | H30: 101732 | I30: Минск | J30: 62.81 | L30: 62.81 | M30: 0 | N30: 0 | O30: 0 | P30: 0 | Q30: 0 | R30: Рабочий день
A31: 2026-08-25 | B31: 8 | C31: Иванов И.И. | D31: 101732 | G31: 0 | H31: 101732 | I31: Минск | J31: 62.81 | L31: 62.81 | M31: 0 | N31: 0 | O31: 0 | P31: 0 | Q31: 0 | R31: Рабочий день
A32: 2026-08-26 | B32: 8 | C32: Иванов И.И. | D32: 101732 | G32: 0 | H32: 101732 | I32: Минск | J32: 62.81 | L32: 62.81 | M32: 0 | N32: 0 | O32: 0 | P32: 0 | Q32: 0 | R32: Рабочий день
A33: 2026-08-27 | B33: 8 | C33: Иванов И.И. | D33: 101732 | G33: 0 | H33: 101732 | I33: Минск | J33: 62.81 | L33: 62.81 | M33: 0 | N33: 0 | O33: 0 | P33: 0 | Q33: 0 | R33: Рабочий день
A34: 2026-08-28 | B34: 8 | C34: Иванов И.И. | D34: 101732 | G34: 0 | H34: 101732 | I34: Минск | J34: 62.81 | L34: 62.81 | M34: 0 | N34: 0 | O34: 0 | P34: 0 | Q34: 0 | R34: Рабочий день
A35: 2026-08-31 | B35: 8 | C35: Иванов И.И. | D35: 101732 | G35: 0 | H35: 101732 | I35: Минск | J35: 62.81 | L35: 62.81 | M35: 0 | N35: 0 | O35: 0 | P35: 0 | Q35: 0 | R35: Рабочий день
A39: ИТОГО за месяц | E39: =SUM(E15:E38) -> 0 | F39: =SUM(F15:F38) -> 0 | G39: =SUM(G15:G38) -> 0 | K39: =SUM(K15:K38) -> 0 | M39: =SUM(M15:M38) -> 0 | N39: =SUM(N15:N38) -> 0 | O39: =SUM(O15:O38) -> 0 | P39: =SUM(P15:P38) -> 0 | Q39: =SUM(Q15:Q38) -> 0
G40: =E39+F39 -> 0
A41: Составил | J41: Проверил

Sheet 9
A1: ООО "Пример" | N1: линейная норма | P1: 13,2 л | S1: бак | T1: 72 | U1: литра
N3: Минск | P3: 15.3 | Q3: л
N4: город | P4: 13.2 | Q4: л
A5: =WORKDAY(DATE(2026, J6 + 1, 1), -1) -> 2026-09-30 | N5: за городом | P5: 14 | Q5: л
I6: Карточка № | J6: 9
A7: учета расхода бинзина АИ-92 автомобилем
A8: Марка автомобиля Автомобиль | I8: Регистрационный номер 10-01 АА-7
H9: за | I9: =CHOOSE(J6, "январь","февраль","март","апрель","май","июнь","июль","август","сентябрь","октябрь","ноябрь","декабрь") -> сентябрь | J9: 2026 года
A11: Водитель: | C11: Иванов И.И.
A13: Число месяца | B13: Номер путевого листа | C13: Ф.И.О. водителя | D13: Показание спидометра перед поездкой | E13: Пробег , км за городом | F13: Пробег , км город | G13: Пробег , км Общий | H13: Показание спидометра после поездки | I13: Служебное задание (маршрут следования) | J13: Остаток топлива при выезде, л. | K13: Приобретено топлива на АЗС, л. | L13: Остаток топлива при возврате, л | M13: Расход топлива по норме, л. Трасса | N13: Расход топлива по норме, л. | O13: Расход топлива по норме, л. Общий | P13: Расход топлива фактически, л. | Q13: Результат работы (экономия/перерасход)
A14: 1 | B14: 2 | C14: 3 | D14: 4 | E14: 5 | F14: 6 | G14: 7 | H14: 8 | I14: 9 | J14: 10 | K14: 11 | L14: 12 | M14: 13 | N14: 14 | O14: 15 | P14: 16 | Q14: 17
A15: 2026-09-01 | B15: =$J$6 -> 9 | C15: Иванов И.И. | D15: ='8'!H35 -> 101732 | G15: =E15+F15 -> 0 | H15: =D15+G15 -> 101732 | I15: Минск | J15: ='8'!L35 -> 62.81 | L15: =ROUND(J15+K15-O15,2) -> 62.81 | M15: =ROUND($P$5/100*E15,2) -> 0 | N15: =ROUND(IF(I15="Минск",$P$3/100*F15,$P$4/100*F15),2) -> 0 | O15: =M15+N15 -> 0 | P15: =O15 -> 0 | Q15: =P15-O15 -> 0 | R15: =IF(WORKDAY(A15-1, 1)=A15, "Рабочий день", "Выходной") -> Рабочий день
A16: 2026-09-02 | B16: =$J$6 -> 9 | C16: Иванов И.И. | D16: =H15 -> 101732 | G16: =E16+F16 -> 0 | H16: 101732 | I16: Минск | J16: =L15 -> 62.81 | L16: =ROUND(J16+K16-O16,2) -> 62.81 | M16: =ROUND($P$5/100*E16,2) -> 0 | N16: =ROUND(IF(I16="Минск",$P$3/100*F16,$P$4/100*F16),2) -> 0 | O16: =M16+N16 -> 0 | P16: 0 | Q16: =P16-O16 -> 0 | R16: Рабочий день
A17: 2026-09-03 | B17: =$J$6 -> 9 | C17: Иванов И.И. | D17: 101732 | G17: 0 | H17: 101732 | I17: Минск | J17: =L16 -> 62.81 | L17: 62.81 | M17: 0 | N17: 0 | O17: =M17+N17 -> 0 | P17: 0 | Q17: =P17-O17 -> 0 | R17: Рабочий день
A18: 2026-09-04 | B18: 9 | C18: Иванов И.И. | D18: 101732 | G18: 0 | H18: 101732 | I18: Минск | J18: 62.81 | L18: 62.81 | M18: 0 | N18: 0 | O18: 0 | P18: 0 | Q18: 0 | R18: Рабочий день
A19: 2026-09-07 | B19: 9 | C19: Иванов И.И. | D19: 101732 | G19: 0 | H19: 101732 | I19: Минск | J19: 62.81 | L19: 62.81 | M19: 0 | N19: 0 | O19: 0 | P19: 0 | Q19: 0 | R19: Рабочий день
A20: 2026-09-08 | B20: 9 | C20: Иванов И.И. | D20: 101732 | G20: 0 | H20: 101732 | I20: Минск | J20: 62.81 | L20: 62.81 | M20: 0 | N20: 0 | O20: 0 | P20: 0 | Q20: 0 | R20: Рабочий день
A21: 2026-09-09 | B21: 9 | C21: Иванов И.И. | D21: 101732 | G21: 0 | H21: 101732 | I21: Минск | J21: 62.81 | L21: 62.81 | M21: 0 | N21: 0 | O21: 0 | P21: 0 | Q21: 0 | R21: Рабочий день
A22: 2026-09-10 | B22: 9 | C22: Иванов И.И. | D22: 101732 | G22: 0 | H22: 101732 | I22: Минск | J22: 62.81 | L22: 62.81 | M22: 0 | N22: 0 | O22: 0 | P22: 0 | Q22: 0 | R22: Рабочий день
A23: 2026-09-11 | B23: 9 | C23: Иванов И.И. | D23: 101732 | G23: 0 | H23: 101732 | I23: Минск | J23: 62.81 | L23: 62.81 | M23: 0 | N23: 0 | O23: 0 | P23: 0 | Q23: 0 | R23: Рабочий день
A24: 2026-09-14 | B24: 9 | C24: Иванов И.И. | D24: 101732 | G24: 0 | H24: 101732 | I24: Минск | J24: 62.81 | L24: 62.81 | M24: 0 | N24: 0 | O24: 0 | P24: 0 | Q24: 0 | R24: Рабочий день
A25: 2026-09-15 | B25: 9 | C25: Иванов И.И. | D25: 101732 | G25: 0 | H25: 101732 | I25: Минск | J25: 62.81 | L25: 62.81 | M25: 0 | N25: 0 | O25: 0 | P25: 0 | Q25: 0 | R25: Рабочий день
A26: 2026-09-16 | B26: 9 | C26: Иванов И.И. | D26: 101732 | G26: 0 | H26: 101732 | I26: Минск | J26: 62.81 | L26: 62.81 | M26: 0 | N26: 0 | O26: 0 | P26: 0 | Q26: 0 | R26: Рабочий день
A27: 2026-09-17 | B27: 9 | C27: Иванов И.И. | D27: 101732 | G27: 0 | H27: 101732 | I27: Минск | J27: 62.81 | L27: 62.81 | M27: 0 | N27: 0 | O27: 0 | P27: 0 | Q27: 0 | R27: Рабочий день
A28: 2026-09-18 | B28: 9 | C28: Иванов И.И. | D28: 101732 | G28: 0 | H28: 101732 | I28: Минск | J28: 62.81 | L28: 62.81 | M28: 0 | N28: 0 | O28: 0 | P28: 0 | Q28: 0 | R28: Рабочий день
A29: 2026-09-21 | B29: 9 | C29: Иванов И.И. | D29: 101732 | G29: 0 | H29: 101732 | I29: Минск | J29: 62.81 | L29: 62.81 | M29: 0 | N29: 0 | O29: 0 | P29: 0 | Q29: 0 | R29: Рабочий день
A30: 2026-09-22 | B30: 9 | C30: Иванов И.И. | D30: 101732 | G30: 0 | H30: 101732 | I30: Минск | J30: 62.81 | L30: 62.81 | M30: 0 | N30: 0 | O30: 0 | P30: 0 | Q30: 0 | R30: Рабочий день
A31: 2026-09-23 | B31: 9 | C31: Иванов И.И. | D31: 101732 | G31: 0 | H31: 101732 | I31: Минск | J31: 62.81 | L31: 62.81 | M31: 0 | N31: 0 | O31: 0 | P31: 0 | Q31: 0 | R31: Рабочий день
A32: 2026-09-24 | B32: 9 | C32: Иванов И.И. | D32: 101732 | G32: 0 | H32: 101732 | I32: Минск | J32: 62.81 | L32: 62.81 | M32: 0 | N32: 0 | O32: 0 | P32: 0 | Q32: 0 | R32: Рабочий день
A33: 2026-09-25 | B33: 9 | C33: Иванов И.И. | D33: 101732 | G33: 0 | H33: 101732 | I33: Минск | J33: 62.81 | L33: 62.81 | M33: 0 | N33: 0 | O33: 0 | P33: 0 | Q33: 0 | R33: Рабочий день
A34: 2026-09-28 | B34: 9 | C34: Иванов И.И. | D34: 101732 | G34: 0 | H34: 101732 | I34: Минск | J34: 62.81 | L34: 62.81 | M34: 0 | N34: 0 | O34: 0 | P34: 0 | Q34: 0 | R34: Рабочий день
A35: 2026-09-29 | B35: 9 | C35: Иванов И.И. | D35: 101732 | G35: 0 | H35: 101732 | I35: Минск | J35: 62.81 | L35: 62.81 | M35: 0 | N35: 0 | O35: 0 | P35: 0 | Q35: 0 | R35: Рабочий день
A36: 2026-09-30 | B36: 9 | C36: Иванов И.И. | D36: 101732 | G36: 0 | H36: 101732 | I36: Минск | J36: 62.81 | L36: 62.81 | M36: 0 | N36: 0 | O36: 0 | P36: 0 | Q36: 0 | R36: Рабочий день
A39: ИТОГО за месяц | E39: =SUM(E15:E38) -> 0 | F39: =SUM(F15:F38) -> 0 | G39: =SUM(G15:G38) -> 0 | K39: =SUM(K15:K38) -> 0 | M39: =SUM(M15:M38) -> 0 | N39: =SUM(N15:N38) -> 0 | O39: =SUM(O15:O38) -> 0 | P39: =SUM(P15:P38) -> 0 | Q39: =SUM(Q15:Q38) -> 0
G40: =E39+F39 -> 0
A41: Составил | J41: Проверил

Sheet 10
A1: ООО "Пример" | N1: линейная норма | P1: 13,2 л | S1: бак | T1: 72 | U1: литра
N3: Минск | P3: 15.3 | Q3: л
N4: город | P4: 13.2 | Q4: л
A5: =WORKDAY(DATE(2026, J6 + 1, 1), -1) -> 2026-10-30 | N5: за городом | P5: 14 | Q5: л
I6: Карточка № | J6: 10
A7: учета расхода бинзина АИ-92 автомобилем
A8: Марка автомобиля Автомобиль | I8: Регистрационный номер 10-01 АА-7
H9: за | I9: =CHOOSE(J6, "январь","февраль","март","апрель","май","июнь","июль","август","сентябрь","октябрь","ноябрь","декабрь") -> октябрь | J9: 2026 года
A11: Водитель: | C11: Иванов И.И.
A13: Число месяца | B13: Номер путевого листа | C13: Ф.И.О. водителя | D13: Показание спидометра перед поездкой | E13: Пробег , км за городом | F13: Пробег , км город | G13: Пробег , км Общий | H13: Показание спидометра после поездки | I13: Служебное задание (маршрут следования) | J13: Остаток топлива при выезде, л. | K13: Приобретено топлива на АЗС, л. | L13: Остаток топлива при возврате, л | M13: Расход топлива по норме, л. Трасса | N13: Расход топлива по норме, л. | O13: Расход топлива по норме, л. Общий | P13: Расход топлива фактически, л. | Q13: Результат работы (экономия/перерасход)
A14: 1 | B14: 2 | C14: 3 | D14: 4 | E14: 5 | F14: 6 | G14: 7 | H14: 8 | I14: 9 | J14: 10 | K14: 11 | L14: 12 | M14: 13 | N14: 14 | O14: 15 | P14: 16 | Q14: 17
A15: 2026-10-01 | B15: =$J$6 -> 10 | C15: Иванов И.И. | D15: ='9'!H36 -> 101732 | G15: =E15+F15 -> 0 | H15: =D15+G15 -> 101732 | I15: Минск | J15: ='9'!L36 -> 62.81 | L15: =ROUND(J15+K15-O15,2) -> 62.81 | M15: =ROUND($P$5/100*E15,2) -> 0 | N15: =ROUND(IF(I15="Минск",$P$3/100*F15,$P$4/100*F15),2) -> 0 | O15: =M15+N15 -> 0 | P15: =O15 -> 0 | Q15: =P15-O15 -> 0 | R15: =IF(WORKDAY(A15-1, 1)=A15, "Рабочий день", "Выходной") -> Рабочий день
A16: 2026-10-02 | B16: =$J$6 -> 10 | C16: Иванов И.И. | D16: =H15 -> 101732 | G16: =E16+F16 -> 0 | H16: 101732 | I16: Минск | J16: =L15 -> 62.81 | L16: =ROUND(J16+K16-O16,2) -> 62.81 | M16: =ROUND($P$5/100*E16,2) -> 0 | N16: =ROUND(IF(I16="Минск",$P$3/100*F16,$P$4/100*F16),2) -> 0 | O16: =M16+N16 -> 0 | P16: 0 | Q16: =P16-O16 -> 0 | R16: Рабочий день
A17: 2026-10-05 | B17: =$J$6 -> 10 | C17: Иванов И.И. | D17: 101732 | G17: 0 | H17: 101732 | I17: Минск | J17: =L16 -> 62.81 | L17: 62.81 | M17: 0 | N17: 0 | O17: =M17+N17 -> 0 | P17: 0 | Q17: =P17-O17 -> 0 | R17: Рабочий день
A18: 2026-10-06 | B18: 10 | C18: Иванов И.И. | D18: 101732 | G18: 0 | H18: 101732 | I18: Минск | J18: 62.81 | L18: 62.81 | M18: 0 | N18: 0 | O18: 0 | P18: 0 | Q18: 0 | R18: Рабочий день
A19: 2026-10-07 | B19: 10 | C19: Иванов И.И. | D19: 101732 | G19: 0 | H19: 101732 | I19: Минск | J19: 62.81 | L19: 62.81 | M19: 0 | N19: 0 | O19: 0 | P19: 0 | Q19: 0 | R19: Рабочий день
A20: 2026-10-08 | B20: 10 | C20: Иванов И.И. | D20: 101732 | G20: 0 | H20: 101732 | I20: Минск | J20: 62.81 | L20: 62.81 | M20: 0 | N20: 0 | O20: 0 | P20: 0 | Q20: 0 | R20: Рабочий день
A21: 2026-10-09 | B21: 10 | C21: Иванов И.И. | D21: 101732 | G21: 0 | H21: 101732 | I21: Минск | J21: 62.81 | L21: 62.81 | M21: 0 | N21: 0 | O21: 0 | P21: 0 | Q21: 0 | R21: Рабочий день
A22: 2026-10-12 | B22: 10 | C22: Иванов И.И. | D22: 101732 | G22: 0 | H22: 101732 | I22: Минск | J22: 62.81 | L22: 62.81 | M22: 0 | N22: 0 | O22: 0 | P22: 0 | Q22: 0 | R22: Рабочий день
A23: 2026-10-13 | B23: 10 | C23: Иванов И.И. | D23: 101732 | G23: 0 | H23: 101732 | I23: Минск | J23: 62.81 | L23: 62.81 | M23: 0 | N23: 0 | O23: 0 | P23: 0 | Q23: 0 | R23: Рабочий день
A24: 2026-10-14 | B24: 10 | C24: Иванов И.И. | D24: 101732 | G24: 0 | H24: 101732 | I24: Минск | J24: 62.81 | L24: 62.81 | M24: 0 | N24: 0 | O24: 0 | P24: 0 | Q24: 0 | R24: Рабочий день
A25: 2026-10-15 | B25: 10 | C25: Иванов И.И. | D25: 101732 | G25: 0 | H25: 101732 | I25: Минск | J25: 62.81 | L25: 62.81 | M25: 0 | N25: 0 | O25: 0 | P25: 0 | Q25: 0 | R25: Рабочий день
A26: 2026-10-16 | B26: 10 | C26: Иванов И.И. | D26: 101732 | G26: 0 | H26: 101732 | I26: Минск | J26: 62.81 | L26: 62.81 | M26: 0 | N26: 0 | O26: 0 | P26: 0 | Q26: 0 | R26: Рабочий день
A27: 2026-10-19 | B27: 10 | C27: Иванов И.И. | D27: 101732 | G27: 0 | H27: 101732 | I27: Минск | J27: 62.81 | L27: 62.81 | M27: 0 | N27: 0 | O27: 0 | P27: 0 | Q27: 0 | R27: Рабочий день
A28: 2026-10-20 | B28: 10 | C28: Иванов И.И. | D28: 101732 | G28: 0 | H28: 101732 | I28: Минск | J28: 62.81 | L28: 62.81 | M28: 0 | N28: 0 | O28: 0 | P28: 0 | Q28: 0 | R28: Рабочий день
A29: 2026-10-21 | B29: 10 | C29: Иванов И.И. | D29: 101732 | G29: 0 | H29: 101732 | I29: Минск | J29: 62.81 | L29: 62.81 | M29: 0 | N29: 0 | O29: 0 | P29: 0 | Q29: 0 | R29: Рабочий день
A30: 2026-10-22 | B30: 10 | C30: Иванов И.И. | D30: 101732 | G30: 0 | H30: 101732 | I30: Минск | J30: 62.81 | L30: 62.81 | M30: 0 | N30: 0 | O30: 0 | P30: 0 | Q30: 0 | R30: Рабочий день
A31: 2026-10-23 | B31: 10 | C31: Иванов И.И. | D31: 101732 | G31: 0 | H31: 101732 | I31: Минск | J31: 62.81 | L31: 62.81 | M31: 0 | N31: 0 | O31: 0 | P31: 0 | Q31: 0 | R31: Рабочий день
A32: 2026-10-26 | B32: 10 | C32: Иванов И.И. | D32: 101732 | G32: 0 | H32: 101732 | I32: Минск | J32: 62.81 | L32: 62.81 | M32: 0 | N32: 0 | O32: 0 | P32: 0 | Q32: 0 | R32: Рабочий день
A33: 2026-10-27 | B33: 10 | C33: Иванов И.И. | D33: 101732 | G33: 0 | H33: 101732 | I33: Минск | J33: 62.81 | L33: 62.81 | M33: 0 | N33: 0 | O33: 0 | P33: 0 | Q33: 0 | R33: Рабочий день
A34: 2026-10-28 | B34: 10 | C34: Иванов И.И. | D34: 101732 | G34: 0 | H34: 101732 | I34: Минск | J34: 62.81 | L34: 62.81 | M34: 0 | N34: 0 | O34: 0 | P34: 0 | Q34: 0 | R34: Рабочий день
A35: 2026-10-29 | B35: 10 | C35: Иванов И.И. | D35: 101732 | G35: 0 | H35: 101732 | I35: Минск | J35: 62.81 | L35: 62.81 | M35: 0 | N35: 0 | O35: 0 | P35: 0 | Q35: 0 | R35: Рабочий день
A36: 2026-10-30 | B36: 10 | C36: Иванов И.И. | D36: 101732 | G36: 0 | H36: 101732 | I36: Минск | J36: 62.81 | L36: 62.81 | M36: 0 | N36: 0 | O36: 0 | P36: 0 | Q36: 0 | R36: Рабочий день
A39: ИТОГО за месяц | E39: =SUM(E15:E38) -> 0 | F39: =SUM(F15:F38) -> 0 | G39: =SUM(G15:G38) -> 0 | K39: =SUM(K15:K38) -> 0 | M39: =SUM(M15:M38) -> 0 | N39: =SUM(N15:N38) -> 0 | O39: =SUM(O15:O38) -> 0 | P39: =SUM(P15:P38) -> 0 | Q39: =SUM(Q15:Q38) -> 0
G40: =E39+F39 -> 0
A41: Составил | J41: Проверил

Sheet 11
A1: ООО "Пример" | N1: линейная норма | P1: 13,2 л | S1: бак | T1: 72 | U1: литра
N3: Минск | P3: 15.3 | Q3: л
N4: город | P4: 13.2 | Q4: л
A5: =WORKDAY(DATE(2026, J6 + 1, 1), -1) -> 2026-11-30 | N5: за городом | P5: 14 | Q5: л
I6: Карточка № | J6: 11
A7: учета расхода бинзина АИ-92 автомобилем
A8: Марка автомобиля Автомобиль | I8: Регистрационный номер 10-01 АА-7
H9: за | I9: =CHOOSE(J6, "январь","февраль","март","апрель","май","июнь","июль","август","сентябрь","октябрь","ноябрь","декабрь") -> ноябрь | J9: 2026 года
A11: Водитель: | C11: Иванов И.И.
A13: Число месяца | B13: Номер путевого листа | C13: Ф.И.О. водителя | D13: Показание спидометра перед поездкой | E13: Пробег , км за городом | F13: Пробег , км город | G13: Пробег , км Общий | H13: Показание спидометра после поездки | I13: Служебное задание (маршрут следования) | J13: Остаток топлива при выезде, л. | K13: Приобретено топлива на АЗС, л. | L13: Остаток топлива при возврате, л | M13: Расход топлива по норме, л. Трасса | N13: Расход топлива по норме, л. | O13: Расход топлива по норме, л. Общий | P13: Расход топлива фактически, л. | Q13: Результат работы (экономия/перерасход)
A14: 1 | B14: 2 | C14: 3 | D14: 4 | E14: 5 | F14: 6 | G14: 7 | H14: 8 | I14: 9 | J14: 10 | K14: 11 | L14: 12 | M14: 13 | N14: 14 | O14: 15 | P14: 16 | Q14: 17
A15: 2026-11-02 | B15: =$J$6 -> 11 | C15: Иванов И.И. | D15: ='10'!H36 -> 101732 | G15: =E15+F15 -> 0 | H15: =D15+G15 -> 101732 | I15: Минск | J15: ='10'!L36 -> 62.81 | L15: =ROUND(J15+K15-O15,2) -> 62.81 | M15: =ROUND($P$5/100*E15,2) -> 0 | N15: =ROUND(IF(I15="Минск",$P$3/100*F15,$P$4/100*F15),2) -> 0 | O15: =M15+N15 -> 0 | P15: =O15 -> 0 | Q15: =P15-O15 -> 0 | R15: =IF(WORKDAY(A15-1, 1)=A15, "Рабочий день", "Выходной") -> Рабочий день
A16: 2026-11-03 | B16: =$J$6 -> 11 | C16: Иванов И.И. | D16: =H15 -> 101732 | G16: =E16+F16 -> 0 | H16: =D16+G16 -> 101732 | I16: Минск | J16: =L15 -> 62.81 | L16: =ROUND(J16+K16-O16,2) -> 62.81 | M16: =ROUND($P$5/100*E16,2) -> 0 | N16: =ROUND(IF(I16="Минск",$P$3/100*F16,$P$4/100*F16),2) -> 0 | O16: 0 | P16: 0 | Q16: =P16-O16 -> 0 | R16: Рабочий день
A17: 2026-11-04 | B17: =$J$6 -> 11 | C17: Иванов И.И. | D17: =H15 -> 101732 | G17: 0 | H17: =D17+G17 -> 101732 | I17: Минск | J17: =L16 -> 62.81 | L17: =ROUND(J17+K17-O17,2) -> 62.81 | M17: 0 | N17: 0 | O17: =M17+N17 -> 0 | P17: 0 | Q17: =P17-O17 -> 0 | R17: Рабочий день
A18: 2026-11-05 | B18: 11 | C18: Иванов И.И. | D18: =H17 -> 101732 | G18: 0 | H18: 101732 | I18: Минск | J18: 62.81 | L18: 62.81 | M18: 0 | N18: 0 | O18: =M18+N18 -> 0 | P18: 0 | Q18: =P18-O18 -> 0 | R18: Рабочий день
A19: 2026-11-06 | B19: 11 | C19: Иванов И.И. | D19: 101732 | G19: 0 | H19: 101732 | I19: Минск | J19: 62.81 | L19: 62.81 | M19: 0 | N19: 0 | O19: 0 | P19: 0 | Q19: 0 | R19: Рабочий день
A20: 2026-11-09 | B20: 11 | C20: Иванов И.И. | D20: 101732 | G20: 0 | H20: 101732 | I20: Минск | J20: 62.81 | L20: 62.81 | M20: 0 | N20: 0 | O20: 0 | P20: 0 | Q20: 0 | R20: Рабочий день
A21: 2026-11-10 | B21: 11 | C21: Иванов И.И. | D21: 101732 | G21: 0 | H21: 101732 | I21: Минск - Витебск | J21: 62.81 | L21: 62.81 | M21: 0 | N21: 0 | O21: 0 | P21: 0 | Q21: 0 | R21: Рабочий день
A22: 2026-11-11 | B22: 11 | C22: Иванов И.И. | D22: 101732 | G22: 0 | H22: 101732 | I22: Витебск | J22: 62.81 | L22: 62.81 | M22: 0 | N22: 0 | O22: 0 | P22: 0 | Q22: 0 | R22: Рабочий день
A23: 2026-11-12 | B23: 11 | C23: Иванов И.И. | D23: 101732 | G23: 0 | H23: 101732 | I23: Витебск-Минск | J23: 62.81 | L23: 62.81 | M23: 0 | N23: 0 | O23: 0 | P23: 0 | Q23: 0 | R23: Рабочий день
A24: 2026-11-13 | B24: 11 | C24: Иванов И.И. | D24: 101732 | G24: 0 | H24: 101732 | I24: Минск | J24: 62.81 | L24: 62.81 | M24: 0 | N24: 0 | O24: 0 | P24: 0 | Q24: 0 | R24: Рабочий день
A25: 2026-11-16 | B25: 11 | C25: Иванов И.И. | D25: 101732 | G25: 0 | H25: 101732 | I25: Минск | J25: 62.81 | L25: 62.81 | M25: 0 | N25: 0 | O25: 0 | P25: 0 | Q25: 0 | R25: Рабочий день
A26: 2026-11-17 | B26: 11 | C26: Иванов И.И. | D26: 101732 | G26: 0 | H26: 101732 | I26: Минск | J26: 62.81 | L26: 62.81 | M26: 0 | N26: 0 | O26: 0 | P26: 0 | Q26: 0 | R26: Рабочий день
A27: 2026-11-18 | B27: 11 | C27: Иванов И.И. | D27: 101732 | G27: 0 | H27: 101732 | I27: Минск | J27: 62.81 | L27: 62.81 | M27: 0 | N27: 0 | O27: 0 | P27: 0 | Q27: 0 | R27: Рабочий день
A28: 2026-11-19 | B28: 11 | C28: Иванов И.И. | D28: 101732 | G28: 0 | H28: 101732 | I28: Минск | J28: 62.81 | L28: 62.81 | M28: 0 | N28: 0 | O28: 0 | P28: 0 | Q28: 0 | R28: Рабочий день
A29: 2026-11-20 | B29: 11 | C29: Иванов И.И. | D29: 101732 | G29: 0 | H29: 101732 | I29: Минск | J29: 62.81 | L29: 62.81 | M29: 0 | N29: 0 | O29: 0 | P29: 0 | Q29: 0 | R29: Рабочий день
A30: 2026-11-23 | B30: 11 | C30: Иванов И.И. | D30: 101732 | G30: 0 | H30: 101732 | I30: Минск | J30: 62.81 | L30: 62.81 | M30: 0 | N30: 0 | O30: 0 | P30: 0 | Q30: 0 | R30: Рабочий день
A31: 2026-11-24 | B31: 11 | C31: Иванов И.И. | D31: 101732 | G31: 0 | H31: 101732 | I31: Минск | J31: 62.81 | L31: 62.81 | M31: 0 | N31: 0 | O31: 0 | P31: 0 | Q31: 0 | R31: Рабочий день
A32: 2026-11-25 | B32: 11 | C32: Иванов И.И. | D32: 101732 | G32: 0 | H32: 101732 | I32: Минск | J32: 62.81 | L32: 62.81 | M32: 0 | N32: 0 | O32: 0 | P32: 0 | Q32: 0 | R32: Рабочий день
A33: 2026-11-26 | B33: 11 | C33: Иванов И.И. | D33: 101732 | G33: 0 | H33: 101732 | I33: Минск | J33: 62.81 | L33: 62.81 | M33: 0 | N33: 0 | O33: 0 | P33: 0 | Q33: 0 | R33: Рабочий день
A34: 2026-11-27 | B34: 11 | C34: Иванов И.И. | D34: 101732 | G34: 0 | H34: 101732 | I34: Минск | J34: 62.81 | L34: 62.81 | M34: 0 | N34: 0 | O34: 0 | P34: 0 | Q34: 0 | R34: Рабочий день
A35: 2026-11-30 | B35: 11 | C35: Иванов И.И. | D35: =H34 -> 101732 | G35: =E35+F35 -> 0 | H35: =D35+G35 -> 101732 | I35: Минск | J35: =L34 -> 62.81 | L35: =ROUND(J35+K35-O35,2) -> 62.81 | M35: =ROUND($P$5/100*E35,2) -> 0 | N35: =ROUND(IF(I35="Минск",$P$3/100*F35,$P$4/100*F35),2) -> 0 | O35: =M35+N35 -> 0 | P35: =O35 -> 0 | Q35: =P35-O35 -> 0 | R35: Рабочий день
A39: ИТОГО за месяц | E39: =SUM(E15:E38) -> 0 | F39: =SUM(F15:F38) -> 0 | G39: =SUM(G15:G38) -> 0 | K39: =SUM(K15:K38) -> 0 | M39: =SUM(M15:M38) -> 0 | N39: =SUM(N15:N38) -> 0 | O39: =SUM(O15:O38) -> 0 | P39: =SUM(P15:P38) -> 0 | Q39: =SUM(Q15:Q38) -> 0
G40: =E39+F39 -> 0
A41: Составил | J41: Проверил

Sheet 12
A1: ООО "Пример" | N1: линейная норма | P1: 13,2 л | S1: бак | T1: 72 | U1: литра
N3: Минск | P3: 15.3 | Q3: л
N4: город | P4: 13.2 | Q4: л
A5: =WORKDAY(DATE(2026, J6 + 1, 1), -1) -> 2026-12-31 | N5: за городом | P5: 14 | Q5: л
I6: Карточка № | J6: 12
A7: учета расхода бинзина АИ-92 автомобилем
A8: Марка автомобиля Автомобиль | I8: Регистрационный номер 10-01 АА-7
H9: за | I9: =CHOOSE(J6, "январь","февраль","март","апрель","май","июнь","июль","август","сентябрь","октябрь","ноябрь","декабрь") -> декабрь | J9: 2026 года
A11: Водитель: | C11: Иванов И.И.
A13: Число месяца | B13: Номер путевого листа | C13: Ф.И.О. водителя | D13: Показание спидометра перед поездкой | E13: Пробег , км за городом | F13: Пробег , км город | G13: Пробег , км Общий | H13: Показание спидометра после поездки | I13: Служебное задание (маршрут следования) | J13: Остаток топлива при выезде, л. | K13: Приобретено топлива на АЗС, л. | L13: Остаток топлива при возврате, л | M13: Расход топлива по норме, л. Трасса | N13: Расход топлива по норме, л. | O13: Расход топлива по норме, л. Общий | P13: Расход топлива фактически, л. | Q13: Результат работы (экономия/перерасход)
A14: 1 | B14: 2 | C14: 3 | D14: 4 | E14: 5 | F14: 6 | G14: 7 | H14: 8 | I14: 9 | J14: 10 | K14: 11 | L14: 12 | M14: 13 | N14: 14 | O14: 15 | P14: 16 | Q14: 17
A15: 2026-12-01 | B15: =$J$6 -> 12 | C15: Иванов И.И. | D15: ='11'!H35 -> 101732 | G15: =E15+F15 -> 0 | H15: =D15+G15 -> 101732 | I15: Минск | J15: ='11'!J15 -> 62.81 | L15: =ROUND(J15+K15-O15,2) -> 62.81 | M15: =ROUND($P$5/100*E15,2) -> 0 | N15: =ROUND(IF(I15="Минск",$P$3/100*F15,$P$4/100*F15),2) -> 0 | O15: =M15+N15 -> 0 | P15: =O15 -> 0 | Q15: =P15-O15 -> 0 | R15: =IF(WORKDAY(A15-1, 1)=A15, "Рабочий день", "Выходной") -> Рабочий день
A16: 2026-12-02 | B16: =$J$6 -> 12 | C16: Иванов И.И. | D16: =H15 -> 101732 | G16: =E16+F16 -> 0 | H16: 101732 | I16: Минск | J16: =L15 -> 62.81 | L16: =ROUND(J16+K16-O16,2) -> 62.81 | M16: =ROUND($P$5/100*E16,2) -> 0 | N16: =ROUND(IF(I16="Минск",$P$3/100*F16,$P$4/100*F16),2) -> 0 | O16: =M16+N16 -> 0 | P16: 0 | Q16: =P16-O16 -> 0 | R16: Рабочий день
A17: 2026-12-03 | B17: =$J$6 -> 12 | C17: Иванов И.И. | D17: 101732 | G17: 0 | H17: 101732 | I17: Минск | J17: =L16 -> 62.81 | L17: 62.81 | M17: 0 | N17: 0 | O17: =M17+N17 -> 0 | P17: 0 | Q17: =P17-O17 -> 0 | R17: Рабочий день
A18: 2026-12-04 | B18: 12 | C18: Иванов И.И. | D18: 101732 | G18: 0 | H18: 101732 | I18: Минск | J18: 62.81 | L18: 62.81 | M18: 0 | N18: 0 | O18: 0 | P18: 0 | Q18: 0 | R18: Рабочий день
A19: 2026-12-07 | B19: 12 | C19: Иванов И.И. | D19: 101732 | G19: 0 | H19: 101732 | I19: Минск | J19: 62.81 | L19: 62.81 | M19: 0 | N19: 0 | O19: 0 | P19: 0 | Q19: 0 | R19: Рабочий день
A20: 2026-12-08 | B20: 12 | C20: Иванов И.И. | D20: 101732 | G20: 0 | H20: 101732 | I20: Минск | J20: 62.81 | L20: 62.81 | M20: 0 | N20: 0 | O20: 0 | P20: 0 | Q20: 0 | R20: Рабочий день
A21: 2026-12-09 | B21: 12 | C21: Иванов И.И. | D21: 101732 | G21: 0 | H21: 101732 | I21: Минск | J21: 62.81 | L21: 62.81 | M21: 0 | N21: 0 | O21: 0 | P21: 0 | Q21: 0 | R21: Рабочий день
A22: 2026-12-10 | B22: 12 | C22: Иванов И.И. | D22: 101732 | G22: 0 | H22: 101732 | I22: Минск | J22: 62.81 | L22: 62.81 | M22: 0 | N22: 0 | O22: 0 | P22: 0 | Q22: 0 | R22: Рабочий день
A23: 2026-12-11 | B23: 12 | C23: Иванов И.И. | D23: 101732 | G23: 0 | H23: 101732 | I23: Минск | J23: 62.81 | L23: 62.81 | M23: 0 | N23: 0 | O23: 0 | P23: 0 | Q23: 0 | R23: Рабочий день
A24: 2026-12-14 | B24: 12 | C24: Иванов И.И. | D24: 101732 | G24: 0 | H24: 101732 | I24: Минск | J24: 62.81 | L24: 62.81 | M24: 0 | N24: 0 | O24: 0 | P24: 0 | Q24: 0 | R24: Рабочий день
A25: 2026-12-15 | B25: 12 | C25: Иванов И.И. | D25: 101732 | G25: 0 | H25: 101732 | I25: Минск | J25: 62.81 | L25: 62.81 | M25: 0 | N25: 0 | O25: 0 | P25: 0 | Q25: 0 | R25: Рабочий день
A26: 2026-12-16 | B26: 12 | C26: Иванов И.И. | D26: 101732 | G26: 0 | H26: 101732 | I26: Минск | J26: 62.81 | L26: 62.81 | M26: 0 | N26: 0 | O26: 0 | P26: 0 | Q26: 0 | R26: Рабочий день
A27: 2026-12-17 | B27: 12 | C27: Иванов И.И. | D27: 101732 | G27: 0 | H27: 101732 | I27: Минск | J27: 62.81 | L27: 62.81 | M27: 0 | N27: 0 | O27: 0 | P27: 0 | Q27: 0 | R27: Рабочий день
A28: 2026-12-18 | B28: 12 | C28: Иванов И.И. | D28: 101732 | G28: 0 | H28: 101732 | I28: Минск | J28: 62.81 | L28: 62.81 | M28: 0 | N28: 0 | O28: 0 | P28: 0 | Q28: 0 | R28: Рабочий день
A29: 2026-12-21 | B29: 12 | C29: Иванов И.И. | D29: 101732 | G29: 0 | H29: 101732 | I29: Минск | J29: 62.81 | L29: 62.81 | M29: 0 | N29: 0 | O29: 0 | P29: 0 | Q29: 0 | R29: Рабочий день
A30: 2026-12-22 | B30: 12 | C30: Иванов И.И. | D30: 101732 | G30: 0 | H30: 101732 | I30: Минск | J30: 62.81 | L30: 62.81 | M30: 0 | N30: 0 | O30: 0 | P30: 0 | Q30: 0 | R30: Рабочий день
A31: 2026-12-23 | B31: 12 | C31: Иванов И.И. | D31: 101732 | G31: 0 | H31: 101732 | I31: Минск | J31: 62.81 | L31: 62.81 | M31: 0 | N31: 0 | O31: 0 | P31: 0 | Q31: 0 | R31: Рабочий день
A32: 2026-12-24 | B32: 12 | C32: Иванов И.И. | D32: 101732 | G32: 0 | H32: 101732 | I32: Минск | J32: 62.81 | L32: 62.81 | M32: 0 | N32: 0 | O32: 0 | P32: 0 | Q32: 0 | R32: Рабочий день
A33: 2026-12-28 | B33: 12 | C33: Иванов И.И. | D33: 101732 | G33: 0 | H33: 101732 | I33: Минск | J33: 62.81 | L33: 62.81 | M33: 0 | N33: 0 | O33: 0 | P33: 0 | Q33: 0 | R33: Рабочий день
A34: 2026-12-29 | B34: 12 | C34: Иванов И.И. | D34: 101732 | G34: 0 | H34: 101732 | I34: Минск | J34: 62.81 | L34: 62.81 | M34: 0 | N34: 0 | O34: 0 | P34: 0 | Q34: 0 | R34: Рабочий день
A35: 2026-12-30 | B35: 12 | C35: Иванов И.И. | D35: 101732 | G35: 0 | H35: 101732 | I35: Минск - Гомель-Минск | J35: 62.81 | L35: 62.81 | M35: 0 | N35: 0 | O35: 0 | P35: 0 | Q35: 0 | R35: Рабочий день
A36: 2026-12-31 | B36: 12 | C36: Иванов И.И. | D36: 101732 | G36: 0 | H36: 101732 | I36: Минск | J36: 62.81 | L36: 62.81 | M36: =ROUND($P$5/100*E36,2) -> 0 | N36: =ROUND(IF(I36="Минск",$P$3/100*F36,$P$4/100*F36),2) -> 0 | O36: =M36+N36 -> 0 | P36: =O36 -> 0 | Q36: =P36-O36 -> 0 | R36: Рабочий день
A39: ИТОГО за месяц | E39: =SUM(E15:E38) -> 0 | F39: =SUM(F15:F38) -> 0 | G39: =SUM(G15:G38) -> 0 | K39: =SUM(K15:K38) -> 0 | M39: =SUM(M15:M38) -> 0 | N39: =SUM(N15:N38) -> 0 | O39: =SUM(O15:O38) -> 0 | P39: =SUM(P15:P38) -> 0 | Q39: =SUM(Q15:Q38) -> 0
G40: =E39+F39 -> 0
A41: Составил | J41: Проверил

Sheet Лист1 (hidden)
A2: Столбец1 | B2: Столбец2 | C2: Столбец3 | D2: Столбец4 | E2: Столбец5 | F2: Столбец6 | G2: Столбец7 | H2: Столбец8 | I2: Столбец9 | J2: Столбец10 | K2: Столбец11 | L2: Столбец12

Sheet Лист2 (hidden)
